Body Name,Body,Service Division,Expense Type,Date Paid,Transaction Ref,Invoice Amount,Supplier Name
South Holland District Council,http://statistics.data.gov.uk/id/local-authority/32UF,AD Housing,Grants and Contributions to Outside Bodies - No Service Received,06/06/2023,30031091,"7,218.70 ",Lincolnshire Bathrooms and Wetrooms
South Holland District Council,http://statistics.data.gov.uk/id/local-authority/32UF,AD Housing,Grants and Contributions to Outside Bodies - No Service Received,06/06/2023,30031098,"8,497.34 ",R A Joinery
South Holland District Council,http://statistics.data.gov.uk/id/local-authority/32UF,AD Housing,Grants and Contributions to Outside Bodies - No Service Received,06/06/2023,30031186,"32,788.80 ",Martin Greaves Building Contractor
South Holland District Council,http://statistics.data.gov.uk/id/local-authority/32UF,AD Housing,Grants and Contributions to Outside Bodies - No Service Received,06/06/2023,30031187,"6,945.00 ",Obam Domestic Lift Services Ltd
South Holland District Council,http://statistics.data.gov.uk/id/local-authority/32UF,AD Housing,Grants and Contributions to Outside Bodies - No Service Received,06/06/2023,30031189,"1,699.25 ",Princebuild Ltd
South Holland District Council,http://statistics.data.gov.uk/id/local-authority/32UF,AD Housing HRA,Agency Staff,06/06/2023,30031580,"1,108.52 ","""Personal Information Redacted"""
South Holland District Council,http://statistics.data.gov.uk/id/local-authority/32UF,AD Housing HRA,Buildings Maintenance - Responsive,06/06/2023,30031723,600.00 ,Lunns Haulage Ltd
South Holland District Council,http://statistics.data.gov.uk/id/local-authority/32UF,AD Housing HRA,Electricity,06/06/2023,30031602,"3,359.08 ",Total Energies
South Holland District Council,http://statistics.data.gov.uk/id/local-authority/32UF,AD Housing HRA,Fuel and Oil,06/06/2023,30031527,"1,030.31 ",C H Jones Ltd
South Holland District Council,http://statistics.data.gov.uk/id/local-authority/32UF,AD Strategic Growth and Development,Grants and Contributions to Outside Bodies - No Service Received,06/06/2023,30031552,"34,412.12 ",Long Sutton Men's Shed - Youth Shed
South Holland District Council,http://statistics.data.gov.uk/id/local-authority/32UF,AD Strategic Growth and Development,Postages,06/06/2023,30031691,700.89 ,Integrity Plus Ltd
South Holland District Council,http://statistics.data.gov.uk/id/local-authority/32UF,AD Strategic Growth and Development,Professional and Contractors Fees,06/06/2023,30031691,218.91 ,Integrity Plus Ltd
South Holland District Council,http://statistics.data.gov.uk/id/local-authority/32UF,AD Wellbeing and Community Leadership,Bed and Breakfast Accommodation (Homelessness Service),06/06/2023,30031366,"1,085.00 ",Anglia Motel
South Holland District Council,http://statistics.data.gov.uk/id/local-authority/32UF,AD Wellbeing and Community Leadership,Bed and Breakfast Accommodation (Homelessness Service),06/06/2023,30031368,"1,085.00 ",Anglia Motel
South Holland District Council,http://statistics.data.gov.uk/id/local-authority/32UF,AD Wellbeing and Community Leadership,Bed and Breakfast Accommodation (Homelessness Service),06/06/2023,30031373,"1,085.00 ",Anglia Motel
South Holland District Council,http://statistics.data.gov.uk/id/local-authority/32UF,AD Wellbeing and Community Leadership,Bed and Breakfast Accommodation (Homelessness Service),06/06/2023,30031375,"1,085.00 ",Anglia Motel
South Holland District Council,http://statistics.data.gov.uk/id/local-authority/32UF,AD Wellbeing and Community Leadership,Bed and Breakfast Accommodation (Homelessness Service),06/06/2023,30031571,"1,166.66 ",The Mansion House Hotel
South Holland District Council,http://statistics.data.gov.uk/id/local-authority/32UF,AD Wellbeing and Community Leadership,Bed and Breakfast Accommodation (Homelessness Service),06/06/2023,30031572,"1,050.00 ",The Mansion House Hotel
South Holland District Council,http://statistics.data.gov.uk/id/local-authority/32UF,AD Wellbeing and Community Leadership,Bed and Breakfast Accommodation (Homelessness Service),06/06/2023,30031574,991.66 ,The Mansion House Hotel
South Holland District Council,http://statistics.data.gov.uk/id/local-authority/32UF,AD Wellbeing and Community Leadership,Bed and Breakfast Accommodation (Homelessness Service),06/06/2023,30031632,"1,085.00 ",Anglia Motel
South Holland District Council,http://statistics.data.gov.uk/id/local-authority/32UF,AD Wellbeing and Community Leadership,Bed and Breakfast Accommodation (Homelessness Service),06/06/2023,30031633,"1,085.00 ",Anglia Motel
South Holland District Council,http://statistics.data.gov.uk/id/local-authority/32UF,AD Wellbeing and Community Leadership,Bed and Breakfast Accommodation (Homelessness Service),06/06/2023,30031634,"1,085.00 ",Anglia Motel
South Holland District Council,http://statistics.data.gov.uk/id/local-authority/32UF,AD Wellbeing and Community Leadership,Bed and Breakfast Accommodation (Homelessness Service),06/06/2023,30031635,"1,085.00 ",Anglia Motel
South Holland District Council,http://statistics.data.gov.uk/id/local-authority/32UF,AD Wellbeing and Community Leadership,Bed and Breakfast Accommodation (Homelessness Service),06/06/2023,30031638,"1,085.00 ",Anglia Motel
South Holland District Council,http://statistics.data.gov.uk/id/local-authority/32UF,AD Wellbeing and Community Leadership,Bed and Breakfast Accommodation (Homelessness Service),06/06/2023,30031644,"1,085.00 ",Anglia Motel
South Holland District Council,http://statistics.data.gov.uk/id/local-authority/32UF,AD Wellbeing and Community Leadership,Bed and Breakfast Accommodation (Homelessness Service),06/06/2023,30031647,"1,085.00 ",Anglia Motel
South Holland District Council,http://statistics.data.gov.uk/id/local-authority/32UF,AD Wellbeing and Community Leadership,Bed and Breakfast Accommodation (Homelessness Service),06/06/2023,30031648,"1,085.00 ",Anglia Motel
South Holland District Council,http://statistics.data.gov.uk/id/local-authority/32UF,AD Wellbeing and Community Leadership,Bed and Breakfast Accommodation (Homelessness Service),06/06/2023,30031655,"1,085.00 ",Anglia Motel
South Holland District Council,http://statistics.data.gov.uk/id/local-authority/32UF,AD Wellbeing and Community Leadership,Grants and Contributions to Outside Bodies - No Service Received,06/06/2023,30031091,"14,437.40 ",Lincolnshire Bathrooms and Wetrooms
South Holland District Council,http://statistics.data.gov.uk/id/local-authority/32UF,AD Wellbeing and Community Leadership,Grants and Contributions to Outside Bodies - No Service Received,06/06/2023,30031098,"16,994.68 ",R A Joinery
South Holland District Council,http://statistics.data.gov.uk/id/local-authority/32UF,AD Wellbeing and Community Leadership,Grants and Contributions to Outside Bodies - No Service Received,06/06/2023,30031186,"65,577.60 ",Martin Greaves Building Contractor
South Holland District Council,http://statistics.data.gov.uk/id/local-authority/32UF,AD Wellbeing and Community Leadership,Grants and Contributions to Outside Bodies - No Service Received,06/06/2023,30031187,"13,890.00 ",Obam Domestic Lift Services Ltd
South Holland District Council,http://statistics.data.gov.uk/id/local-authority/32UF,AD Wellbeing and Community Leadership,Grants and Contributions to Outside Bodies - No Service Received,06/06/2023,30031189,"3,398.50 ",Princebuild Ltd
South Holland District Council,http://statistics.data.gov.uk/id/local-authority/32UF,Asset & Property,Buildings Maintenance - Programmed,06/06/2023,30031539,450.00 ,Dale Harrison Building and Restoration Ltd
South Holland District Council,http://statistics.data.gov.uk/id/local-authority/32UF,Asset & Property,Buildings Maintenance - Responsive,06/06/2023,30031536,996.00 ,Dale Harrison Building and Restoration Ltd
South Holland District Council,http://statistics.data.gov.uk/id/local-authority/32UF,Asset & Property,Electricity,06/06/2023,30031603,"17,867.34 ",Total Energies
South Holland District Council,http://statistics.data.gov.uk/id/local-authority/32UF,Asset & Property,Fuel and Oil,06/06/2023,30031527,195.81 ,C H Jones Ltd
South Holland District Council,http://statistics.data.gov.uk/id/local-authority/32UF,Democratic Services - Democratic,Furniture and Equipment,06/06/2023,30031570,"7,028.95 ",Springfields Events and Conf Centre
South Holland District Council,http://statistics.data.gov.uk/id/local-authority/32UF,Democratic Services - Legal,Legal Fees,06/06/2023,30031276,649.20 ,Lincolnshire County Council
South Holland District Council,http://statistics.data.gov.uk/id/local-authority/32UF,Environmental Services,Fuel and Oil,06/06/2023,30031527,"7,260.60 ",C H Jones Ltd
South Holland District Council,http://statistics.data.gov.uk/id/local-authority/32UF,Planning,Grants and Contributions to Outside Bodies - No Service Received,06/06/2023,30031595,"1,177,942.80 ",Lincolnshire County Council (S106)
South Holland District Council,http://statistics.data.gov.uk/id/local-authority/32UF,Planning,Grants and Contributions to Outside Bodies - No Service Received,06/06/2023,30031597,"334,828.74 ",Lincolnshire County Council (S106)
South Holland District Council,http://statistics.data.gov.uk/id/local-authority/32UF,Planning,Grants and Contributions to Outside Bodies - No Service Received,06/06/2023,30031598,"803,774.68 ",Lincolnshire County Council (S106)
South Holland District Council,http://statistics.data.gov.uk/id/local-authority/32UF,Planning,Legal Fees Non-Routine,06/06/2023,30031711,"3,753.90 ",Howes Percival
South Holland District Council,http://statistics.data.gov.uk/id/local-authority/32UF,AD Housing HRA,Agency Staff,08/06/2023,30031582,"1,295.00 ","""Personal Information Redacted"""
South Holland District Council,http://statistics.data.gov.uk/id/local-authority/32UF,AD Housing HRA,Agency Staff,08/06/2023,30031678,"1,398.68 ",Integrity Plus Ltd
South Holland District Council,http://statistics.data.gov.uk/id/local-authority/32UF,AD Housing HRA,Gas,08/06/2023,30031610,670.57 ,Espo Gas and Electricity
South Holland District Council,http://statistics.data.gov.uk/id/local-authority/32UF,AD Housing HRA,Materials and Consumables,08/06/2023,30031783,"6,402.60 ",Gibbs and Dandy
South Holland District Council,http://statistics.data.gov.uk/id/local-authority/32UF,AD Housing HRA,Roof Repairs,08/06/2023,30031662,"1,390.00 ",Kev Forman Roofing Ltd
South Holland District Council,http://statistics.data.gov.uk/id/local-authority/32UF,AD Housing HRA,Roof Repairs,08/06/2023,30031666,470.00 ,Kev Forman Roofing Ltd
South Holland District Council,http://statistics.data.gov.uk/id/local-authority/32UF,AD Housing HRA,Roof Repairs,08/06/2023,30031667,"3,580.00 ",Kev Forman Roofing Ltd
South Holland District Council,http://statistics.data.gov.uk/id/local-authority/32UF,AD Housing HRA,Roof Repairs,08/06/2023,30031668,470.00 ,Kev Forman Roofing Ltd
South Holland District Council,http://statistics.data.gov.uk/id/local-authority/32UF,AD Housing HRA,Roof Repairs,08/06/2023,30031669,740.00 ,Kev Forman Roofing Ltd
South Holland District Council,http://statistics.data.gov.uk/id/local-authority/32UF,AD Housing HRA,Roof Repairs,08/06/2023,30031670,420.00 ,Kev Forman Roofing Ltd
South Holland District Council,http://statistics.data.gov.uk/id/local-authority/32UF,AD Housing HRA,Roof Repairs,08/06/2023,30031683,740.00 ,Kev Forman Roofing Ltd
South Holland District Council,http://statistics.data.gov.uk/id/local-authority/32UF,AD Housing HRA,Roof Repairs,08/06/2023,30031696,470.00 ,Kev Forman Roofing Ltd
South Holland District Council,http://statistics.data.gov.uk/id/local-authority/32UF,AD Housing HRA,Roof Repairs,08/06/2023,30031697,"1,285.00 ",Kev Forman Roofing Ltd
South Holland District Council,http://statistics.data.gov.uk/id/local-authority/32UF,AD Housing HRA,Roof Repairs,08/06/2023,30031698,"2,105.00 ",Kev Forman Roofing Ltd
South Holland District Council,http://statistics.data.gov.uk/id/local-authority/32UF,AD Housing HRA,Roof Repairs,08/06/2023,30031719,"1,390.00 ",Kev Forman Roofing Ltd
South Holland District Council,http://statistics.data.gov.uk/id/local-authority/32UF,AD Housing HRA,Roof Repairs,08/06/2023,30031720,840.00 ,Kev Forman Roofing Ltd
South Holland District Council,http://statistics.data.gov.uk/id/local-authority/32UF,AD Housing HRA,Roof Repairs,08/06/2023,30031728,"1,390.00 ",Kev Forman Roofing Ltd
South Holland District Council,http://statistics.data.gov.uk/id/local-authority/32UF,AD Housing HRA,Roof Repairs,08/06/2023,30031733,"2,170.00 ",Kev Forman Roofing Ltd
South Holland District Council,http://statistics.data.gov.uk/id/local-authority/32UF,AD Housing HRA,Staff Training Expenses (Non-Payroll),08/06/2023,30031781,"1,197.45 ",Sandra Whiles Coaching Ltd
South Holland District Council,http://statistics.data.gov.uk/id/local-authority/32UF,AD Strategic Growth and Development,Professional Fees,08/06/2023,30031706,460.00 ,Messrs Longstaff and Co
South Holland District Council,http://statistics.data.gov.uk/id/local-authority/32UF,Asset & Property,Buildings Maintenance - Responsive,08/06/2023,30031549,"2,750.00 ",Dale Harrison Building and Restoration Ltd
South Holland District Council,http://statistics.data.gov.uk/id/local-authority/32UF,Asset & Property,Buildings Maintenance - Responsive,08/06/2023,30031578,424.52 ,GBSG Ltd
South Holland District Council,http://statistics.data.gov.uk/id/local-authority/32UF,Asset & Property,Buildings Maintenance - Responsive,08/06/2023,30031729,600.00 ,SM Painting & Decorating Ltd
South Holland District Council,http://statistics.data.gov.uk/id/local-authority/32UF,Asset & Property,Buildings Maintenance - Responsive,08/06/2023,30031730,840.00 ,SM Painting & Decorating Ltd
South Holland District Council,http://statistics.data.gov.uk/id/local-authority/32UF,Asset & Property,Gas,08/06/2023,30031611,"5,379.57 ",Espo Gas and Electricity
South Holland District Council,http://statistics.data.gov.uk/id/local-authority/32UF,Asset & Property,Works to Buildings (Main Contractor),08/06/2023,30031795,"38,793.00 ",Rise Adaptations Ltd
South Holland District Council,http://statistics.data.gov.uk/id/local-authority/32UF,Capital - Strategic Finance & Compliance,Works to Buildings (Main Contractor),08/06/2023,30031795,"38,793.00 ",Rise Adaptations Ltd
South Holland District Council,http://statistics.data.gov.uk/id/local-authority/32UF,Head of ICT and Digital,Telephone and Mobiles,08/06/2023,30031747,"5,113.61 ",Public Sector Partnership Services Ltd
South Holland District Council,http://statistics.data.gov.uk/id/local-authority/32UF,Leisure & Culture Communities,Electricity,08/06/2023,30031577,"4,814.22 ",Total Energies
South Holland District Council,http://statistics.data.gov.uk/id/local-authority/32UF,Leisure & Culture Communities,Gas,08/06/2023,30031612,"3,509.38 ",Espo Gas and Electricity
South Holland District Council,http://statistics.data.gov.uk/id/local-authority/32UF,Planning,Agency - Vacant Post Cover,08/06/2023,30031551,"14,325.00 ",Mark Simmonds Planning Services Limited
South Holland District Council,http://statistics.data.gov.uk/id/local-authority/32UF,AD Housing,Grants and Contributions to Outside Bodies - No Service Received,13/06/2023,30031861,975.00 ,JC Architectural Consultant
South Holland District Council,http://statistics.data.gov.uk/id/local-authority/32UF,AD Housing,Staff Training Expenses (Non-Payroll),13/06/2023,30031975,495.00 ,Benchmarq Ltd
South Holland District Council,http://statistics.data.gov.uk/id/local-authority/32UF,AD Housing HRA,Agency Staff,13/06/2023,30031811,"1,192.00 ","""Personal Information Redacted"""
South Holland District Council,http://statistics.data.gov.uk/id/local-authority/32UF,AD Housing HRA,Agency Staff,13/06/2023,30031823,823.88 ,Integrity Plus Ltd
South Holland District Council,http://statistics.data.gov.uk/id/local-authority/32UF,AD Housing HRA,Agency Staff,13/06/2023,30031921,787.50 ,"""Personal Information Redacted"""
South Holland District Council,http://statistics.data.gov.uk/id/local-authority/32UF,AD Housing HRA,Materials and Consumables,13/06/2023,30031782,"4,106.39 ",Gibbs and Dandy
South Holland District Council,http://statistics.data.gov.uk/id/local-authority/32UF,AD Housing HRA,Purchase of Hardware,13/06/2023,30031843,"1,988.48 ",Matrix Network Services Ltd
South Holland District Council,http://statistics.data.gov.uk/id/local-authority/32UF,AD Housing HRA,Roof Repairs,13/06/2023,30031768,540.00 ,Kev Forman Roofing Ltd
South Holland District Council,http://statistics.data.gov.uk/id/local-authority/32UF,AD Housing HRA,Sewerage Treatment Works,13/06/2023,30031739,"27,354.08 ",C G Godfrey Ltd
South Holland District Council,http://statistics.data.gov.uk/id/local-authority/32UF,AD Housing HRA,Works to Buildings (Main Contractor),13/06/2023,30031777,"2,002.00 ",C G Godfrey Ltd
South Holland District Council,http://statistics.data.gov.uk/id/local-authority/32UF,AD Housing HRA,Works to Buildings (Main Contractor),13/06/2023,30031990,"1,305.00 ",C G Godfrey Ltd
South Holland District Council,http://statistics.data.gov.uk/id/local-authority/32UF,AD Strategic Growth and Development,Agency Staff,13/06/2023,30031062,"1,455.90 ",G2 Recruitment Solutions
South Holland District Council,http://statistics.data.gov.uk/id/local-authority/32UF,AD Strategic Growth and Development,Agency Staff,13/06/2023,30031217,"2,342.10 ",G2 Recruitment Solutions
South Holland District Council,http://statistics.data.gov.uk/id/local-authority/32UF,AD Strategic Growth and Development,Legal Fees,13/06/2023,30031494,"6,000.00 ",Clapham and Collinge Lp Client Account
South Holland District Council,http://statistics.data.gov.uk/id/local-authority/32UF,AD Strategic Growth and Development,Professional and Contractors Fees,13/06/2023,30031797,"1,134.42 ",Integrity Plus Ltd
South Holland District Council,http://statistics.data.gov.uk/id/local-authority/32UF,AD Strategic Growth and Development,Stationery,13/06/2023,30031222,860.00 ,TeamStrides Ltd
South Holland District Council,http://statistics.data.gov.uk/id/local-authority/32UF,AD Strategic Growth and Development,Subscriptions to Organisations and Other Bodies,13/06/2023,30029657,"2,747.85 ",West Devon Borough Council
South Holland District Council,http://statistics.data.gov.uk/id/local-authority/32UF,AD Wellbeing and Community Leadership,Bed and Breakfast Accommodation (Homelessness Service),13/06/2023,30031700,"1,083.34 ",G and A Hotels T A Woodlands Hotel
South Holland District Council,http://statistics.data.gov.uk/id/local-authority/32UF,AD Wellbeing and Community Leadership,Bed and Breakfast Accommodation (Homelessness Service),13/06/2023,30031701,"1,083.34 ",G and A Hotels T A Woodlands Hotel
South Holland District Council,http://statistics.data.gov.uk/id/local-authority/32UF,AD Wellbeing and Community Leadership,Bed and Breakfast Accommodation (Homelessness Service),13/06/2023,30031862,"1,085.00 ",Anglia Motel
South Holland District Council,http://statistics.data.gov.uk/id/local-authority/32UF,AD Wellbeing and Community Leadership,Bed and Breakfast Accommodation (Homelessness Service),13/06/2023,30031863,"1,085.00 ",Anglia Motel
South Holland District Council,http://statistics.data.gov.uk/id/local-authority/32UF,AD Wellbeing and Community Leadership,Bed and Breakfast Accommodation (Homelessness Service),13/06/2023,30031865,"1,085.00 ",Anglia Motel
South Holland District Council,http://statistics.data.gov.uk/id/local-authority/32UF,AD Wellbeing and Community Leadership,Bed and Breakfast Accommodation (Homelessness Service),13/06/2023,30031868,"1,085.00 ",Anglia Motel
South Holland District Council,http://statistics.data.gov.uk/id/local-authority/32UF,AD Wellbeing and Community Leadership,Bed and Breakfast Accommodation (Homelessness Service),13/06/2023,30031869,"1,085.00 ",Anglia Motel
South Holland District Council,http://statistics.data.gov.uk/id/local-authority/32UF,AD Wellbeing and Community Leadership,Bed and Breakfast Accommodation (Homelessness Service),13/06/2023,30031872,"1,085.00 ",Anglia Motel
South Holland District Council,http://statistics.data.gov.uk/id/local-authority/32UF,AD Wellbeing and Community Leadership,Bed and Breakfast Accommodation (Homelessness Service),13/06/2023,30031879,"1,085.00 ",Anglia Motel
South Holland District Council,http://statistics.data.gov.uk/id/local-authority/32UF,AD Wellbeing and Community Leadership,Bed and Breakfast Accommodation (Homelessness Service),13/06/2023,30031881,"1,085.00 ",Anglia Motel
South Holland District Council,http://statistics.data.gov.uk/id/local-authority/32UF,AD Wellbeing and Community Leadership,Bed and Breakfast Accommodation (Homelessness Service),13/06/2023,30031883,930.00 ,Anglia Motel
South Holland District Council,http://statistics.data.gov.uk/id/local-authority/32UF,AD Wellbeing and Community Leadership,Bed and Breakfast Accommodation (Homelessness Service),13/06/2023,30031971,"1,120.00 ",Fairfield Guest House
South Holland District Council,http://statistics.data.gov.uk/id/local-authority/32UF,AD Wellbeing and Community Leadership,Bed and Breakfast Accommodation (Homelessness Service),13/06/2023,30031973,"2,240.00 ",Fairfield Guest House
South Holland District Council,http://statistics.data.gov.uk/id/local-authority/32UF,AD Wellbeing and Community Leadership,Bed and Breakfast Accommodation (Homelessness Service),13/06/2023,30031974,"2,240.00 ",Fairfield Guest House
South Holland District Council,http://statistics.data.gov.uk/id/local-authority/32UF,AD Wellbeing and Community Leadership,Bed and Breakfast Accommodation (Homelessness Service),13/06/2023,30031987,"1,166.66 ",The Mansion House Hotel
South Holland District Council,http://statistics.data.gov.uk/id/local-authority/32UF,AD Wellbeing and Community Leadership,Bed and Breakfast Accommodation (Homelessness Service),13/06/2023,30031988,"1,050.00 ",The Mansion House Hotel
South Holland District Council,http://statistics.data.gov.uk/id/local-authority/32UF,AD Wellbeing and Community Leadership,Bed and Breakfast Accommodation (Homelessness Service),13/06/2023,30031989,991.66 ,The Mansion House Hotel
South Holland District Council,http://statistics.data.gov.uk/id/local-authority/32UF,AD Wellbeing and Community Leadership,Grants and Contributions to Outside Bodies - No Service Received,13/06/2023,30031713,"2,000.00 ",Spalding Taxis Ltd
South Holland District Council,http://statistics.data.gov.uk/id/local-authority/32UF,AD Wellbeing and Community Leadership,Grants and Contributions to Outside Bodies - No Service Received,13/06/2023,30031861,"1,950.00 ",JC Architectural Consultant
South Holland District Council,http://statistics.data.gov.uk/id/local-authority/32UF,AD Wellbeing and Community Leadership,Grants and Contributions to Outside Bodies - No Service Received,13/06/2023,30031956,"2,560.00 ",Property Panda Lettings Ltd
South Holland District Council,http://statistics.data.gov.uk/id/local-authority/32UF,AD Wellbeing and Community Leadership,Staff Training Expenses (Non-Payroll),13/06/2023,30031975,990.00 ,Benchmarq Ltd
South Holland District Council,http://statistics.data.gov.uk/id/local-authority/32UF,Asset & Property,Agency Staff,13/06/2023,30031679,658.61 ,Integrity Plus Ltd
South Holland District Council,http://statistics.data.gov.uk/id/local-authority/32UF,Asset & Property,Agency Staff,13/06/2023,30031680,"2,589.68 ",Integrity Plus Ltd
South Holland District Council,http://statistics.data.gov.uk/id/local-authority/32UF,Asset & Property,Agency Staff,13/06/2023,30031824,505.34 ,Integrity Plus Ltd
South Holland District Council,http://statistics.data.gov.uk/id/local-authority/32UF,Asset & Property,Agency Staff,13/06/2023,30031826,"2,171.73 ",Integrity Plus Ltd
South Holland District Council,http://statistics.data.gov.uk/id/local-authority/32UF,Asset & Property,Buildings Maintenance - Responsive,13/06/2023,30031534,"1,800.00 ",Dale Harrison Building and Restoration Ltd
South Holland District Council,http://statistics.data.gov.uk/id/local-authority/32UF,Asset & Property,Buildings Maintenance - Responsive,13/06/2023,30031982,650.00 ,Cleantime Services Ltd
South Holland District Council,http://statistics.data.gov.uk/id/local-authority/32UF,Asset & Property,Furniture and Equipment,13/06/2023,30031870,417.31 ,Chisletts (Spalding) Ltd
South Holland District Council,http://statistics.data.gov.uk/id/local-authority/32UF,Asset & Property,Professional and Contractors Fees,13/06/2023,30031681,"1,886.02 ",Chase Services Group LTD
South Holland District Council,http://statistics.data.gov.uk/id/local-authority/32UF,Democratic Services - Democratic,Rent Payments,13/06/2023,30031766,660.45 ,Crowland Parish Council
South Holland District Council,http://statistics.data.gov.uk/id/local-authority/32UF,Democratic Services - Democratic,Rent Payments,13/06/2023,30031769,540.00 ,D St Nicholas Parochial Church Council
South Holland District Council,http://statistics.data.gov.uk/id/local-authority/32UF,Economic Development,Professional and Contractors Fees,13/06/2023,30031660,"9,062.50 ",Michael Page Internat Recruitment Ltd
South Holland District Council,http://statistics.data.gov.uk/id/local-authority/32UF,Environmental Services,Agency Staff,13/06/2023,30031560,"2,795.52 ",GI Group (previously Encore)
South Holland District Council,http://statistics.data.gov.uk/id/local-authority/32UF,Environmental Services,Fuel and Oil,13/06/2023,30031798,"1,363.80 ",WCF Chandlers
South Holland District Council,http://statistics.data.gov.uk/id/local-authority/32UF,Environmental Services,Other Miscellaneous Expenses,13/06/2023,30031793,465.00 ,Welland Print Limited
South Holland District Council,http://statistics.data.gov.uk/id/local-authority/32UF,Finance,Purchase of Hardware,13/06/2023,30031843,"2,982.72 ",Matrix Network Services Ltd
South Holland District Council,http://statistics.data.gov.uk/id/local-authority/32UF,Head of ICT and Digital,Computer Hardware Maintenance,13/06/2023,30031947,498.00 ,Onesource It Ltd
South Holland District Council,http://statistics.data.gov.uk/id/local-authority/32UF,Head of ICT and Digital,Materials and Consumables,13/06/2023,30031962,"1,106.00 ",Public Sector Partnership Services Ltd
South Holland District Council,http://statistics.data.gov.uk/id/local-authority/32UF,Leisure & Culture Communities,Electricity,13/06/2023,30031581,"2,713.03 ",Total Energies
South Holland District Council,http://statistics.data.gov.uk/id/local-authority/32UF,Leisure & Culture Communities,Performers and Entertainers Fees,13/06/2023,30031984,"6,091.70 ",Entertainers Show Providers Ltd
South Holland District Council,http://statistics.data.gov.uk/id/local-authority/32UF,Leisure & Culture Communities,Water and Sewerage Charges,13/06/2023,30031514,"2,155.00 ",Wave
South Holland District Council,http://statistics.data.gov.uk/id/local-authority/32UF,Planning,Agency - Vacant Post Cover,13/06/2023,30031845,"2,520.00 ",Vivid Resourcing
South Holland District Council,http://statistics.data.gov.uk/id/local-authority/32UF,Planning,Professional and Contractors Fees,13/06/2023,30031847,"2,125.00 ",DPA Planning Limited
South Holland District Council,http://statistics.data.gov.uk/id/local-authority/32UF,AD Housing,Cleaning Contract,15/06/2023,30032066,525.00 ,Avasta
South Holland District Council,http://statistics.data.gov.uk/id/local-authority/32UF,AD Housing,Grants and Contributions to Outside Bodies - No Service Received,15/06/2023,30031901,"7,545.36 ",R A Joinery
South Holland District Council,http://statistics.data.gov.uk/id/local-authority/32UF,AD Housing,Other Miscellaneous Expenses,15/06/2023,30031855,"14,111.40 ",Broadgate Homes Ltd
South Holland District Council,http://statistics.data.gov.uk/id/local-authority/32UF,AD Housing HRA,Agency Staff,15/06/2023,30031915,"1,091.42 ","""Personal Information Redacted"""
South Holland District Council,http://statistics.data.gov.uk/id/local-authority/32UF,AD Housing HRA,Buildings Maintenance - Responsive,15/06/2023,30031972,"1,853.15 ",C G Godfrey Ltd
South Holland District Council,http://statistics.data.gov.uk/id/local-authority/32UF,AD Housing HRA,Buildings Maintenance - Responsive,15/06/2023,30031991,975.00 ,Boors Ltd
South Holland District Council,http://statistics.data.gov.uk/id/local-authority/32UF,AD Housing HRA,Buildings Maintenance - Responsive,15/06/2023,30031993,"2,188.69 ",C G Godfrey Ltd
South Holland District Council,http://statistics.data.gov.uk/id/local-authority/32UF,AD Housing HRA,Buildings Maintenance - Responsive,15/06/2023,30031997,450.00 ,Boors Ltd
South Holland District Council,http://statistics.data.gov.uk/id/local-authority/32UF,AD Housing HRA,Buildings Maintenance - Responsive,15/06/2023,30032002,975.00 ,Boors Ltd
South Holland District Council,http://statistics.data.gov.uk/id/local-authority/32UF,AD Housing HRA,Buildings Maintenance - Responsive,15/06/2023,30032016,"7,935.00 ",Boors Ltd
South Holland District Council,http://statistics.data.gov.uk/id/local-authority/32UF,AD Housing HRA,Fuel and Oil,15/06/2023,30032036,511.17 ,C H Jones Ltd
South Holland District Council,http://statistics.data.gov.uk/id/local-authority/32UF,AD Housing HRA,Maintenance of Footpaths and Roadways,15/06/2023,30031775,"4,263.13 ",C G Godfrey Ltd
South Holland District Council,http://statistics.data.gov.uk/id/local-authority/32UF,AD Housing HRA,Maintenance of Footpaths and Roadways,15/06/2023,30031776,"3,930.00 ",C G Godfrey Ltd
South Holland District Council,http://statistics.data.gov.uk/id/local-authority/32UF,AD Housing HRA,Professional and Contractors Fees,15/06/2023,30032085,"4,850.00 ",Kier Business Services Ltd
South Holland District Council,http://statistics.data.gov.uk/id/local-authority/32UF,AD Housing HRA,Void Repairs,15/06/2023,30031992,"6,581.00 ",Boors Ltd
South Holland District Council,http://statistics.data.gov.uk/id/local-authority/32UF,AD Housing HRA,Void Repairs,15/06/2023,30031995,"1,835.00 ",Boors Ltd
South Holland District Council,http://statistics.data.gov.uk/id/local-authority/32UF,AD Housing HRA,Void Repairs,15/06/2023,30031996,450.00 ,Boors Ltd
South Holland District Council,http://statistics.data.gov.uk/id/local-authority/32UF,AD Wellbeing and Community Leadership,Bed and Breakfast Accommodation (Homelessness Service),15/06/2023,30032089,"1,085.00 ",Anglia Motel
South Holland District Council,http://statistics.data.gov.uk/id/local-authority/32UF,AD Wellbeing and Community Leadership,Bed and Breakfast Accommodation (Homelessness Service),15/06/2023,30032090,"1,085.00 ",Anglia Motel
South Holland District Council,http://statistics.data.gov.uk/id/local-authority/32UF,AD Wellbeing and Community Leadership,Bed and Breakfast Accommodation (Homelessness Service),15/06/2023,30032091,"1,085.00 ",Anglia Motel
South Holland District Council,http://statistics.data.gov.uk/id/local-authority/32UF,AD Wellbeing and Community Leadership,Bed and Breakfast Accommodation (Homelessness Service),15/06/2023,30032092,"1,085.00 ",Anglia Motel
South Holland District Council,http://statistics.data.gov.uk/id/local-authority/32UF,AD Wellbeing and Community Leadership,Bed and Breakfast Accommodation (Homelessness Service),15/06/2023,30032096,"1,085.00 ",Anglia Motel
South Holland District Council,http://statistics.data.gov.uk/id/local-authority/32UF,AD Wellbeing and Community Leadership,Bed and Breakfast Accommodation (Homelessness Service),15/06/2023,30032099,930.00 ,Anglia Motel
South Holland District Council,http://statistics.data.gov.uk/id/local-authority/32UF,AD Wellbeing and Community Leadership,Grants and Contributions to Outside Bodies - No Service Received,15/06/2023,30031901,"15,090.72 ",R A Joinery
South Holland District Council,http://statistics.data.gov.uk/id/local-authority/32UF,Asset & Property,Buildings Maintenance - Responsive,15/06/2023,30031774,883.59 ,Glen Farrow UK Ltd
South Holland District Council,http://statistics.data.gov.uk/id/local-authority/32UF,Asset & Property,Buildings Maintenance - Responsive,15/06/2023,30031812,941.86 ,GBSG Ltd
South Holland District Council,http://statistics.data.gov.uk/id/local-authority/32UF,Asset & Property,Buildings Maintenance - Responsive,15/06/2023,30031969,488.50 ,Ian Brown Electrical Engineers Ltd
South Holland District Council,http://statistics.data.gov.uk/id/local-authority/32UF,Asset & Property,Electricity,15/06/2023,30032026,"16,539.35 ",Total Energies
South Holland District Council,http://statistics.data.gov.uk/id/local-authority/32UF,Asset & Property,Fuel and Oil,15/06/2023,30032036,158.47 ,C H Jones Ltd
South Holland District Council,http://statistics.data.gov.uk/id/local-authority/32UF,Asset & Property,Professional and Contractors Fees,15/06/2023,30031844,"1,681.21 ",Lincolnshire County Council
South Holland District Council,http://statistics.data.gov.uk/id/local-authority/32UF,Asset & Property,Water and Sewerage Charges,15/06/2023,30032006,"1,341.72 ",Wave
South Holland District Council,http://statistics.data.gov.uk/id/local-authority/32UF,Environmental Services,Agency Staff,15/06/2023,30032015,"2,600.93 ",NJW Services
South Holland District Council,http://statistics.data.gov.uk/id/local-authority/32UF,Environmental Services,Agency Staff,15/06/2023,30032043,827.02 ,Quality Service Recruitment Ltd
South Holland District Council,http://statistics.data.gov.uk/id/local-authority/32UF,Environmental Services,Agency Staff,15/06/2023,30032045,"1,806.23 ",GI Group (previously Encore)
South Holland District Council,http://statistics.data.gov.uk/id/local-authority/32UF,Environmental Services,Fuel and Oil,15/06/2023,30032036,"7,102.38 ",C H Jones Ltd
South Holland District Council,http://statistics.data.gov.uk/id/local-authority/32UF,Environmental Services,Grounds Maintenance Contract (External),15/06/2023,30032056,650.00 ,Greenscape Tree Safe Ltd
South Holland District Council,http://statistics.data.gov.uk/id/local-authority/32UF,Environmental Services,Grounds Maintenance Contract (External),15/06/2023,30032076,"1,500.00 ",Greenscape Tree Safe Ltd
South Holland District Council,http://statistics.data.gov.uk/id/local-authority/32UF,Environmental Services,Grounds Maintenance Contract (External),15/06/2023,30032079,"1,550.00 ",Greenscape Tree Safe Ltd
South Holland District Council,http://statistics.data.gov.uk/id/local-authority/32UF,Environmental Services,Professional and Contractors Fees,15/06/2023,30031844,"1,681.21 ",Lincolnshire County Council
South Holland District Council,http://statistics.data.gov.uk/id/local-authority/32UF,Environmental Services,Telephones,15/06/2023,30031226,625.00 ,Vision Techniques U K Ltd
South Holland District Council,http://statistics.data.gov.uk/id/local-authority/32UF,Environmental Services,Workshop Parts,15/06/2023,30030071,467.56 ,CV Components
South Holland District Council,http://statistics.data.gov.uk/id/local-authority/32UF,Environmental Services,Workshop Parts,15/06/2023,30032086,875.50 ,EMG Anglia Ltd
South Holland District Council,http://statistics.data.gov.uk/id/local-authority/32UF,Head of ICT and Digital,Professional and Contractors Fees,15/06/2023,30031963,800.00 ,Public Sector Partnership Services Ltd
South Holland District Council,http://statistics.data.gov.uk/id/local-authority/32UF,Housing,Cleaning Contract,15/06/2023,30032066,525.00 ,Avasta
South Holland District Council,http://statistics.data.gov.uk/id/local-authority/32UF,Leisure & Culture Communities,Electricity,15/06/2023,30032020,"1,266.98 ",Total Energies
South Holland District Council,http://statistics.data.gov.uk/id/local-authority/32UF,Leisure & Culture Communities,Electricity,15/06/2023,30032025,"4,156.89 ",Total Energies
South Holland District Council,http://statistics.data.gov.uk/id/local-authority/32UF,Leisure & Culture Communities,Professional and Contractors Fees,15/06/2023,30031561,420.00 ,South Lincs Security Limited
South Holland District Council,http://statistics.data.gov.uk/id/local-authority/32UF,Public Protection,Fuel and Oil,15/06/2023,30032036,49.07 ,C H Jones Ltd
South Holland District Council,http://statistics.data.gov.uk/id/local-authority/32UF,AD Housing,Electricity,20/06/2023,30032021,768.44 ,Total Energies
South Holland District Council,http://statistics.data.gov.uk/id/local-authority/32UF,AD Housing HRA,Buildings Maintenance - Responsive,20/06/2023,30031999,"1,150.00 ",Boors Ltd
South Holland District Council,http://statistics.data.gov.uk/id/local-authority/32UF,AD Housing HRA,Buildings Maintenance - Responsive,20/06/2023,30032000,825.00 ,Boors Ltd
South Holland District Council,http://statistics.data.gov.uk/id/local-authority/32UF,AD Housing HRA,Buildings Maintenance - Responsive,20/06/2023,30032001,"1,350.00 ",Boors Ltd
South Holland District Council,http://statistics.data.gov.uk/id/local-authority/32UF,AD Housing HRA,Electricity,20/06/2023,30031601,"7,560.43 ",Total Energies
South Holland District Council,http://statistics.data.gov.uk/id/local-authority/32UF,AD Housing HRA,Electricity,20/06/2023,30032023,"7,243.19 ",Total Energies
South Holland District Council,http://statistics.data.gov.uk/id/local-authority/32UF,AD Housing HRA,Electricity,20/06/2023,30032024,"2,093.56 ",Total Energies
South Holland District Council,http://statistics.data.gov.uk/id/local-authority/32UF,AD Housing HRA,Fuel and Oil,20/06/2023,30032135,669.99 ,C H Jones Ltd
South Holland District Council,http://statistics.data.gov.uk/id/local-authority/32UF,AD Housing HRA,Furniture and Equipment,20/06/2023,30030571,508.61 ,GBSG Ltd
South Holland District Council,http://statistics.data.gov.uk/id/local-authority/32UF,AD Housing HRA,Grounds Maintenance Contract (External),20/06/2023,30032044,450.00 ,Greenscape Tree Safe Ltd
South Holland District Council,http://statistics.data.gov.uk/id/local-authority/32UF,AD Housing HRA,Materials and Consumables,20/06/2023,30032029,438.19 ,EPH Supplies Wholesale Ltd
South Holland District Council,http://statistics.data.gov.uk/id/local-authority/32UF,AD Housing HRA,Professional and Contractors Fees,20/06/2023,30032083,"1,000.00 ",NPS Property Consultants Ltd
South Holland District Council,http://statistics.data.gov.uk/id/local-authority/32UF,AD Housing HRA,Void Repairs,20/06/2023,30031998,"2,450.00 ",Boors Ltd
South Holland District Council,http://statistics.data.gov.uk/id/local-authority/32UF,AD Housing HRA,Void Repairs,20/06/2023,30032003,685.00 ,Boors Ltd
South Holland District Council,http://statistics.data.gov.uk/id/local-authority/32UF,AD Housing HRA,Works to Buildings (Main Contractor),20/06/2023,30031550,"4,779.00 ",Closomat Ltd
South Holland District Council,http://statistics.data.gov.uk/id/local-authority/32UF,AD Housing HRA,Works to Buildings (Main Contractor),20/06/2023,30032151,"1,598.68 ",C G Godfrey Ltd
South Holland District Council,http://statistics.data.gov.uk/id/local-authority/32UF,AD Housing HRA,Works to Buildings (Main Contractor),20/06/2023,30032154,"4,902.59 ",D Brown Building Contractors Ltd
South Holland District Council,http://statistics.data.gov.uk/id/local-authority/32UF,AD Housing HRA,Works to Buildings (Main Contractor),20/06/2023,30032155,"6,241.81 ",D Brown Building Contractors Ltd
South Holland District Council,http://statistics.data.gov.uk/id/local-authority/32UF,AD Wellbeing and Community Leadership,Bed and Breakfast Accommodation (Homelessness Service),20/06/2023,30032126,"1,705.00 ",Anglia Motel
South Holland District Council,http://statistics.data.gov.uk/id/local-authority/32UF,AD Wellbeing and Community Leadership,Bed and Breakfast Accommodation (Homelessness Service),20/06/2023,30032128,"1,085.00 ",Anglia Motel
South Holland District Council,http://statistics.data.gov.uk/id/local-authority/32UF,AD Wellbeing and Community Leadership,Bed and Breakfast Accommodation (Homelessness Service),20/06/2023,30032172,"1,166.66 ",The Mansion House Hotel
South Holland District Council,http://statistics.data.gov.uk/id/local-authority/32UF,AD Wellbeing and Community Leadership,Bed and Breakfast Accommodation (Homelessness Service),20/06/2023,30032173,"1,050.00 ",The Mansion House Hotel
South Holland District Council,http://statistics.data.gov.uk/id/local-authority/32UF,AD Wellbeing and Community Leadership,Bed and Breakfast Accommodation (Homelessness Service),20/06/2023,30032174,991.66 ,The Mansion House Hotel
South Holland District Council,http://statistics.data.gov.uk/id/local-authority/32UF,AD Wellbeing and Community Leadership HRA,Works to Buildings (Main Contractor),20/06/2023,30031550,"4,779.00 ",Closomat Ltd
South Holland District Council,http://statistics.data.gov.uk/id/local-authority/32UF,Asset & Property,Fuel and Oil,20/06/2023,30032135,112.07 ,C H Jones Ltd
South Holland District Council,http://statistics.data.gov.uk/id/local-authority/32UF,Democratic Services - Legal,Legal Fees,20/06/2023,30031489,"5,624.44 ",Lincolnshire County Council
South Holland District Council,http://statistics.data.gov.uk/id/local-authority/32UF,Environmental Services,Agency Staff,20/06/2023,30032164,980.17 ,The Best Connection Group Ltd
South Holland District Council,http://statistics.data.gov.uk/id/local-authority/32UF,Environmental Services,Agency Staff,20/06/2023,30032165,"1,796.29 ",Quality Service Recruitment Ltd
South Holland District Council,http://statistics.data.gov.uk/id/local-authority/32UF,Environmental Services,Agency Staff,20/06/2023,30032166,"1,062.59 ",The Best Connection Group Ltd
South Holland District Council,http://statistics.data.gov.uk/id/local-authority/32UF,Environmental Services,Agency Staff,20/06/2023,30032168,"1,303.72 ",GI Group (previously Encore)
South Holland District Council,http://statistics.data.gov.uk/id/local-authority/32UF,Environmental Services,Agency Staff,20/06/2023,30032169,"2,067.56 ",Quality Service Recruitment Ltd
South Holland District Council,http://statistics.data.gov.uk/id/local-authority/32UF,Environmental Services,Fuel and Oil,20/06/2023,30032135,"7,129.53 ",C H Jones Ltd
South Holland District Council,http://statistics.data.gov.uk/id/local-authority/32UF,Environmental Services,Workshop Parts,20/06/2023,30032163,"3,195.00 ",Lyndale Engines (P'Boro) Ltd
South Holland District Council,http://statistics.data.gov.uk/id/local-authority/32UF,Finance,Public Sector Partnership Services,20/06/2023,30031596,"282,653.16 ",Public Sector Partnership Services Ltd
South Holland District Council,http://statistics.data.gov.uk/id/local-authority/32UF,Head of HR & Organisational Development,Other Employee Expenses,20/06/2023,30031409,"1,430.00 ",Public Sector Partnership Services Ltd
South Holland District Council,http://statistics.data.gov.uk/id/local-authority/32UF,Head of ICT and Digital,Telephone and Mobiles,20/06/2023,30031746,"2,568.15 ",British Telecom Corporate Plc
South Holland District Council,http://statistics.data.gov.uk/id/local-authority/32UF,Head of ICT and Digital,Telephone and Mobiles,20/06/2023,30032074,"2,891.34 ",Vodafone Ltd Corporate
South Holland District Council,http://statistics.data.gov.uk/id/local-authority/32UF,Head of ICT and Digital,Telephone and Mobiles,20/06/2023,30032075,468.75 ,Vodafone Ltd Corporate
South Holland District Council,http://statistics.data.gov.uk/id/local-authority/32UF,Health & Communities,Grants and Contributions to Outside Bodies - No Service Received,20/06/2023,30032108,"3,200.00 ",South Holland In Bloom
South Holland District Council,http://statistics.data.gov.uk/id/local-authority/32UF,Housing,Electricity,20/06/2023,30032021,768.44 ,Total Energies
South Holland District Council,http://statistics.data.gov.uk/id/local-authority/32UF,Leisure & Culture Communities,Professional and Contractors Fees,20/06/2023,30030571,45.00 ,GBSG Ltd
South Holland District Council,http://statistics.data.gov.uk/id/local-authority/32UF,Leisure & Culture Communities,Professional and Contractors Fees,20/06/2023,30031562,420.00 ,South Lincs Security Limited
South Holland District Council,http://statistics.data.gov.uk/id/local-authority/32UF,Planning,Professional and Contractors Fees,20/06/2023,30032158,"1,500.00 ",Routledge Planning Consultancy Limited
South Holland District Council,http://statistics.data.gov.uk/id/local-authority/32UF,AD Housing,Other Miscellaneous Expenses,22/06/2023,30032308,"19,942.00 ",Broadgate Builders (Spalding) Ltd
South Holland District Council,http://statistics.data.gov.uk/id/local-authority/32UF,AD Housing,Other Miscellaneous Expenses,22/06/2023,30032309,"35,689.57 ",Broadgate Builders (Spalding) Ltd
South Holland District Council,http://statistics.data.gov.uk/id/local-authority/32UF,AD Housing HRA,Agency Staff,22/06/2023,30032070,"1,177.10 ","""Personal Information Redacted"""
South Holland District Council,http://statistics.data.gov.uk/id/local-authority/32UF,AD Housing HRA,Agency Staff,22/06/2023,30032197,"1,032.50 ","""Personal Information Redacted"""
South Holland District Council,http://statistics.data.gov.uk/id/local-authority/32UF,AD Housing HRA,Agency Staff,22/06/2023,30032198,"1,114.82 ","""Personal Information Redacted"""
South Holland District Council,http://statistics.data.gov.uk/id/local-authority/32UF,AD Housing HRA,Buildings Maintenance - Responsive,22/06/2023,30032017,970.38 ,C G Godfrey Ltd
South Holland District Council,http://statistics.data.gov.uk/id/local-authority/32UF,AD Housing HRA,Buildings Maintenance - Responsive,22/06/2023,30032150,"2,487.00 ",C G Godfrey Ltd
South Holland District Council,http://statistics.data.gov.uk/id/local-authority/32UF,AD Housing HRA,Buildings Maintenance - Responsive,22/06/2023,30032152,"1,334.21 ",C G Godfrey Ltd
South Holland District Council,http://statistics.data.gov.uk/id/local-authority/32UF,AD Housing HRA,Electrical Upgrade,22/06/2023,30032055,"40,100.79 ",McIntyre Compliance Services
South Holland District Council,http://statistics.data.gov.uk/id/local-authority/32UF,AD Housing HRA,Gas Servicing,22/06/2023,30032148,"1,826.54 ",Aaron Services Ltd
South Holland District Council,http://statistics.data.gov.uk/id/local-authority/32UF,AD Housing HRA,Grants and Contributions to Outside Bodies - No Service Received,22/06/2023,30032291,"1,000.00 ",Charis Grants Ltd
South Holland District Council,http://statistics.data.gov.uk/id/local-authority/32UF,AD Housing HRA,Grants and Contributions to Outside Bodies - No Service Received,22/06/2023,30032292,"2,500.00 ",Charis Grants Ltd
South Holland District Council,http://statistics.data.gov.uk/id/local-authority/32UF,AD Housing HRA,Grounds Maintenance Contract (External),22/06/2023,30032167,550.00 ,Greenscape Tree Safe Ltd
South Holland District Council,http://statistics.data.gov.uk/id/local-authority/32UF,AD Housing HRA,Materials and Consumables,22/06/2023,30032063,724.12 ,EPH Supplies Wholesale Ltd
South Holland District Council,http://statistics.data.gov.uk/id/local-authority/32UF,AD Housing HRA,Staff Training Expenses (Non-Payroll),22/06/2023,30032258,"3,000.00 ",Chris Grose Training & Consultancy
South Holland District Council,http://statistics.data.gov.uk/id/local-authority/32UF,AD Housing HRA,Staff Training Expenses (Non-Payroll),22/06/2023,30032337,"1,585.70 ",CoCoAwareness Ltd
South Holland District Council,http://statistics.data.gov.uk/id/local-authority/32UF,AD Housing HRA,Works to Buildings (Main Contractor),22/06/2023,30032259,"13,441.53 ",D Brown Building Contractors Ltd
South Holland District Council,http://statistics.data.gov.uk/id/local-authority/32UF,AD Housing HRA,Works to Buildings (Main Contractor),22/06/2023,30032260,"62,739.52 ",D Brown Building Contractors Ltd
South Holland District Council,http://statistics.data.gov.uk/id/local-authority/32UF,AD Strategic Growth and Development,Grants and Contributions to Outside Bodies - No Service Received,22/06/2023,30032226,750.00 ,The Parish of St Mary and St Nicholas
South Holland District Council,http://statistics.data.gov.uk/id/local-authority/32UF,AD Wellbeing and Community Leadership,Bed and Breakfast Accommodation (Homelessness Service),22/06/2023,30032254,"1,120.00 ",Fairfield Guest House
South Holland District Council,http://statistics.data.gov.uk/id/local-authority/32UF,AD Wellbeing and Community Leadership,Bed and Breakfast Accommodation (Homelessness Service),22/06/2023,30032255,"1,120.00 ",Fairfield Guest House
South Holland District Council,http://statistics.data.gov.uk/id/local-authority/32UF,Asset & Property,Tyres,22/06/2023,30032325,84.00 ,Vaculug Technologies Ltd
South Holland District Council,http://statistics.data.gov.uk/id/local-authority/32UF,Democratic Services - Democratic,Course Fees,22/06/2023,30031448,"1,247.00 ",Civica UK Limited
South Holland District Council,http://statistics.data.gov.uk/id/local-authority/32UF,Environmental Services,Agency Staff,22/06/2023,30031543,"1,116.18 ",Questech Recruitment Limited
South Holland District Council,http://statistics.data.gov.uk/id/local-authority/32UF,Environmental Services,Agency Staff,22/06/2023,30032034,894.46 ,GI Group (previously Encore)
South Holland District Council,http://statistics.data.gov.uk/id/local-authority/32UF,Environmental Services,Agency Staff,22/06/2023,30032293,829.24 ,The Best Connection Group Ltd
South Holland District Council,http://statistics.data.gov.uk/id/local-authority/32UF,Environmental Services,Agency Staff,22/06/2023,30032300,"6,753.86 ",Integrity Plus Ltd
South Holland District Council,http://statistics.data.gov.uk/id/local-authority/32UF,Environmental Services,Agency Staff,22/06/2023,30032350,833.61 ,The Best Connection Group Ltd
South Holland District Council,http://statistics.data.gov.uk/id/local-authority/32UF,Environmental Services,Materials and Consumables,22/06/2023,30031981,"1,929.50 ",Danline International Ltd
South Holland District Council,http://statistics.data.gov.uk/id/local-authority/32UF,Environmental Services,Telephones,22/06/2023,30032067,625.00 ,Vision Techniques U K Ltd
South Holland District Council,http://statistics.data.gov.uk/id/local-authority/32UF,Environmental Services,Tyres,22/06/2023,30032325,"5,530.70 ",Vaculug Technologies Ltd
South Holland District Council,http://statistics.data.gov.uk/id/local-authority/32UF,Finance,Professional and Contractors Fees,22/06/2023,30031330,750.00 ,Link Treasury Services
South Holland District Council,http://statistics.data.gov.uk/id/local-authority/32UF,Leisure & Culture Communities,Grounds Maintenance Contract (External),22/06/2023,30032324,"1,150.00 ",Greenscape Tree Safe Ltd
South Holland District Council,http://statistics.data.gov.uk/id/local-authority/32UF,Public Protection,Professional and Contractors Fees,22/06/2023,30032182,"1,147.50 ",LA Support Limited
South Holland District Council,http://statistics.data.gov.uk/id/local-authority/32UF,Public Protection,Professional and Contractors Fees,22/06/2023,30032183,"2,857.50 ",LA Support Limited
South Holland District Council,http://statistics.data.gov.uk/id/local-authority/32UF,AD Housing,Other Miscellaneous Expenses,27/06/2023,30032307,"14,158.12 ",Broadgate Homes Ltd
South Holland District Council,http://statistics.data.gov.uk/id/local-authority/32UF,AD Housing,Other Miscellaneous Expenses,27/06/2023,30032310,"9,311.37 ",Broadgate Homes Ltd
South Holland District Council,http://statistics.data.gov.uk/id/local-authority/32UF,AD Housing,Other Miscellaneous Expenses,27/06/2023,30032317,"15,250.11 ",Broadgate Homes Ltd
South Holland District Council,http://statistics.data.gov.uk/id/local-authority/32UF,AD Housing HRA,Agency Staff,27/06/2023,30032233,"1,398.68 ",Integrity Plus Ltd
South Holland District Council,http://statistics.data.gov.uk/id/local-authority/32UF,AD Housing HRA,Agency Staff,27/06/2023,30032447,"1,106.27 ","""Personal Information Redacted"""
South Holland District Council,http://statistics.data.gov.uk/id/local-authority/32UF,AD Housing HRA,Buildings Maintenance - Responsive,27/06/2023,30032153,506.48 ,C G Godfrey Ltd
South Holland District Council,http://statistics.data.gov.uk/id/local-authority/32UF,AD Housing HRA,Buildings Maintenance - Responsive,27/06/2023,30032263,"1,916.92 ",C G Godfrey Ltd
South Holland District Council,http://statistics.data.gov.uk/id/local-authority/32UF,AD Housing HRA,Buildings Maintenance - Responsive,27/06/2023,30032496,985.00 ,"""Personal Information Redacted"""
South Holland District Council,http://statistics.data.gov.uk/id/local-authority/32UF,AD Housing HRA,Buildings Maintenance - Responsive,27/06/2023,30032499,"3,440.00 ","""Personal Information Redacted"""
South Holland District Council,http://statistics.data.gov.uk/id/local-authority/32UF,AD Housing HRA,Fuel and Oil,27/06/2023,30032298,860.14 ,C H Jones Ltd
South Holland District Council,http://statistics.data.gov.uk/id/local-authority/32UF,AD Housing HRA,Furniture and Equipment,27/06/2023,30031695,"12,572.10 ",Tunstall Healthcare UK Ltd
South Holland District Council,http://statistics.data.gov.uk/id/local-authority/32UF,AD Housing HRA,Furniture and Equipment,27/06/2023,30031740,"1,081.50 ",Stannah
South Holland District Council,http://statistics.data.gov.uk/id/local-authority/32UF,AD Housing HRA,Furniture and Equipment,27/06/2023,30031741,"1,269.18 ",Stannah
South Holland District Council,http://statistics.data.gov.uk/id/local-authority/32UF,AD Housing HRA,Furniture and Equipment,27/06/2023,30032120,552.83 ,Saint Gobain Building Distribution
South Holland District Council,http://statistics.data.gov.uk/id/local-authority/32UF,AD Housing HRA,Gas,27/06/2023,30032303,515.00 ,Espo Gas and Electricity
South Holland District Council,http://statistics.data.gov.uk/id/local-authority/32UF,AD Housing HRA,Gas Servicing,27/06/2023,30031708,"25,790.01 ",Aaron Services Ltd
South Holland District Council,http://statistics.data.gov.uk/id/local-authority/32UF,AD Housing HRA,Grounds Maintenance Contract (External),27/06/2023,30032216,"1,200.00 ",Greenscape Tree Safe Ltd
South Holland District Council,http://statistics.data.gov.uk/id/local-authority/32UF,AD Housing HRA,Professional and Contractors Fees,27/06/2023,30031665,"1,106.00 ",Language Line Ltd
South Holland District Council,http://statistics.data.gov.uk/id/local-authority/32UF,AD Housing HRA,Professional and Contractors Fees,27/06/2023,30031707,600.00 ,Agile Enginnering
South Holland District Council,http://statistics.data.gov.uk/id/local-authority/32UF,AD Housing HRA,Professional and Contractors Fees,27/06/2023,30031717,"1,326.17 ",Morgan Lambert Ltd 2018
South Holland District Council,http://statistics.data.gov.uk/id/local-authority/32UF,AD Housing HRA,Professional and Contractors Fees,27/06/2023,30031734,"1,330.00 ",Environtec Limited
South Holland District Council,http://statistics.data.gov.uk/id/local-authority/32UF,AD Housing HRA,Professional and Contractors Fees,27/06/2023,30032156,"1,360.00 ",Complete Certification Ltd
South Holland District Council,http://statistics.data.gov.uk/id/local-authority/32UF,AD Housing HRA,Renewable Energy Servicing,27/06/2023,30031712,"2,817.36 ",Aaron Services Ltd
South Holland District Council,http://statistics.data.gov.uk/id/local-authority/32UF,AD Housing HRA,Roof Repairs,27/06/2023,30032481,640.00 ,Kev Forman Roofing Ltd
South Holland District Council,http://statistics.data.gov.uk/id/local-authority/32UF,AD Housing HRA,Roof Repairs,27/06/2023,30032488,730.00 ,Kev Forman Roofing Ltd
South Holland District Council,http://statistics.data.gov.uk/id/local-authority/32UF,AD Housing HRA,Roof Repairs,27/06/2023,30032502,"1,620.00 ",Kev Forman Roofing Ltd
South Holland District Council,http://statistics.data.gov.uk/id/local-authority/32UF,AD Housing HRA,Roof Repairs,27/06/2023,30032503,790.00 ,Kev Forman Roofing Ltd
South Holland District Council,http://statistics.data.gov.uk/id/local-authority/32UF,AD Housing HRA,Roof Repairs,27/06/2023,30032504,440.00 ,Kev Forman Roofing Ltd
South Holland District Council,http://statistics.data.gov.uk/id/local-authority/32UF,AD Housing HRA,Roof Repairs,27/06/2023,30032506,420.00 ,Kev Forman Roofing Ltd
South Holland District Council,http://statistics.data.gov.uk/id/local-authority/32UF,AD Housing HRA,Void Repairs,27/06/2023,30032217,"2,200.00 ",Greenscape Tree Safe Ltd
South Holland District Council,http://statistics.data.gov.uk/id/local-authority/32UF,AD Housing HRA,Works to Buildings (Main Contractor),27/06/2023,30032005,"18,263.50 ",Hodgson Sayers Ltd
South Holland District Council,http://statistics.data.gov.uk/id/local-authority/32UF,AD Strategic Growth and Development,Professional and Contractors Fees,27/06/2023,30031827,"1,745.00 ",Robert Doughty Consultancy
South Holland District Council,http://statistics.data.gov.uk/id/local-authority/32UF,AD Strategic Growth and Development,Professional Fees,27/06/2023,30031710,"1,025.00 ",Focus Consultants 2010 LLP
South Holland District Council,http://statistics.data.gov.uk/id/local-authority/32UF,AD Strategic Growth and Development,Professional Fees,27/06/2023,30031716,"1,000.00 ",Focus Consultants 2010 LLP
South Holland District Council,http://statistics.data.gov.uk/id/local-authority/32UF,AD Strategic Growth and Development,Professional Fees,27/06/2023,30032106,"8,832.40 ",DWF Law LLP
South Holland District Council,http://statistics.data.gov.uk/id/local-authority/32UF,AD Wellbeing and Community Leadership,Bed and Breakfast Accommodation (Homelessness Service),27/06/2023,30032362,"1,085.00 ",Anglia Motel
South Holland District Council,http://statistics.data.gov.uk/id/local-authority/32UF,AD Wellbeing and Community Leadership,Bed and Breakfast Accommodation (Homelessness Service),27/06/2023,30032363,"1,085.00 ",Anglia Motel
South Holland District Council,http://statistics.data.gov.uk/id/local-authority/32UF,AD Wellbeing and Community Leadership,Bed and Breakfast Accommodation (Homelessness Service),27/06/2023,30032368,"1,085.00 ",Anglia Motel
South Holland District Council,http://statistics.data.gov.uk/id/local-authority/32UF,AD Wellbeing and Community Leadership,Bed and Breakfast Accommodation (Homelessness Service),27/06/2023,30032370,"1,085.00 ",Anglia Motel
South Holland District Council,http://statistics.data.gov.uk/id/local-authority/32UF,AD Wellbeing and Community Leadership,Bed and Breakfast Accommodation (Homelessness Service),27/06/2023,30032376,"1,085.00 ",Anglia Motel
South Holland District Council,http://statistics.data.gov.uk/id/local-authority/32UF,AD Wellbeing and Community Leadership,Bed and Breakfast Accommodation (Homelessness Service),27/06/2023,30032377,"1,085.00 ",Anglia Motel
South Holland District Council,http://statistics.data.gov.uk/id/local-authority/32UF,AD Wellbeing and Community Leadership,Bed and Breakfast Accommodation (Homelessness Service),27/06/2023,30032378,"1,085.00 ",Anglia Motel
South Holland District Council,http://statistics.data.gov.uk/id/local-authority/32UF,AD Wellbeing and Community Leadership,Bed and Breakfast Accommodation (Homelessness Service),27/06/2023,30032379,"1,085.00 ",Anglia Motel
South Holland District Council,http://statistics.data.gov.uk/id/local-authority/32UF,AD Wellbeing and Community Leadership,Bed and Breakfast Accommodation (Homelessness Service),27/06/2023,30032380,"1,085.00 ",Anglia Motel
South Holland District Council,http://statistics.data.gov.uk/id/local-authority/32UF,AD Wellbeing and Community Leadership,Bed and Breakfast Accommodation (Homelessness Service),27/06/2023,30032381,"1,085.00 ",Anglia Motel
South Holland District Council,http://statistics.data.gov.uk/id/local-authority/32UF,AD Wellbeing and Community Leadership,Bed and Breakfast Accommodation (Homelessness Service),27/06/2023,30032470,"1,400.00 ",The Lord Grey Hotel t/a The lord Grey Ltd
South Holland District Council,http://statistics.data.gov.uk/id/local-authority/32UF,AD Wellbeing and Community Leadership,Bed and Breakfast Accommodation (Homelessness Service),27/06/2023,30032475,"1,350.00 ",The Lord Grey Hotel t/a The lord Grey Ltd
South Holland District Council,http://statistics.data.gov.uk/id/local-authority/32UF,AD Wellbeing and Community Leadership,Bed and Breakfast Accommodation (Homelessness Service),27/06/2023,30032522,"1,083.34 ",G and A Hotels T A Woodlands Hotel
South Holland District Council,http://statistics.data.gov.uk/id/local-authority/32UF,AD Wellbeing and Community Leadership,Bed and Breakfast Accommodation (Homelessness Service),27/06/2023,30032523,"1,083.34 ",G and A Hotels T A Woodlands Hotel
South Holland District Council,http://statistics.data.gov.uk/id/local-authority/32UF,AD Wellbeing and Community Leadership,Bed and Breakfast Accommodation (Homelessness Service),27/06/2023,30032549,"1,166.66 ",The Mansion House Hotel
South Holland District Council,http://statistics.data.gov.uk/id/local-authority/32UF,AD Wellbeing and Community Leadership,Bed and Breakfast Accommodation (Homelessness Service),27/06/2023,30032550,"1,050.00 ",The Mansion House Hotel
South Holland District Council,http://statistics.data.gov.uk/id/local-authority/32UF,AD Wellbeing and Community Leadership,Bed and Breakfast Accommodation (Homelessness Service),27/06/2023,30032551,991.66 ,The Mansion House Hotel
South Holland District Council,http://statistics.data.gov.uk/id/local-authority/32UF,AD Wellbeing and Community Leadership,Bed and Breakfast Accommodation (Homelessness Service),27/06/2023,30032579,"1,120.00 ",Fairfield Guest House
South Holland District Council,http://statistics.data.gov.uk/id/local-authority/32UF,AD Wellbeing and Community Leadership,Bed and Breakfast Accommodation (Homelessness Service),27/06/2023,30032580,"1,120.00 ",Fairfield Guest House
South Holland District Council,http://statistics.data.gov.uk/id/local-authority/32UF,AD Wellbeing and Community Leadership,Bed and Breakfast Accommodation (Homelessness Service),27/06/2023,30032582,"1,430.00 ",The Lord Grey Hotel t/a The lord Grey Ltd
South Holland District Council,http://statistics.data.gov.uk/id/local-authority/32UF,AD Wellbeing and Community Leadership,Staff Training Expenses (Non-Payroll),27/06/2023,30032482,"5,990.00 ",UK Mediation Ltd
South Holland District Council,http://statistics.data.gov.uk/id/local-authority/32UF,Asset & Property,Agency Staff,27/06/2023,30032234,"1,010.67 ",Integrity Plus Ltd
South Holland District Council,http://statistics.data.gov.uk/id/local-authority/32UF,Asset & Property,Agency Staff,27/06/2023,30032235,"2,343.82 ",Integrity Plus Ltd
South Holland District Council,http://statistics.data.gov.uk/id/local-authority/32UF,Asset & Property,Agency Staff,27/06/2023,30032462,"1,267.62 ",Integrity Plus Ltd
South Holland District Council,http://statistics.data.gov.uk/id/local-authority/32UF,Asset & Property,Agency Staff,27/06/2023,30032464,"2,352.02 ",Integrity Plus Ltd
South Holland District Council,http://statistics.data.gov.uk/id/local-authority/32UF,Asset & Property,Buildings Maintenance - Responsive,27/06/2023,30030610,275.00 ,Project Energy Consultants Limited
South Holland District Council,http://statistics.data.gov.uk/id/local-authority/32UF,Asset & Property,Electricity,27/06/2023,30032186,"1,221.29 ",e.on Next
South Holland District Council,http://statistics.data.gov.uk/id/local-authority/32UF,Asset & Property,Fuel and Oil,27/06/2023,30032298,215.68 ,C H Jones Ltd
South Holland District Council,http://statistics.data.gov.uk/id/local-authority/32UF,Asset & Property,Gas,27/06/2023,30032273,"1,621.83 ",Espo Gas and Electricity
South Holland District Council,http://statistics.data.gov.uk/id/local-authority/32UF,Asset & Property,Legal Fees,27/06/2023,30031490,"1,729.58 ",Lincolnshire County Council
South Holland District Council,http://statistics.data.gov.uk/id/local-authority/32UF,Asset & Property,Professional and Contractors Fees,27/06/2023,30030610,275.00 ,Project Energy Consultants Limited
South Holland District Council,http://statistics.data.gov.uk/id/local-authority/32UF,Asset & Property,Professional and Contractors Fees,27/06/2023,30031501,985.38 ,Kings Armoured Security Services Ltd
South Holland District Council,http://statistics.data.gov.uk/id/local-authority/32UF,Asset & Property,Professional and Contractors Fees,27/06/2023,30031659,"3,000.00 ",Eddisons
South Holland District Council,http://statistics.data.gov.uk/id/local-authority/32UF,Asset & Property,Professional and Contractors Fees,27/06/2023,30031682,"2,435.99 ",Chase Services Group LTD
South Holland District Council,http://statistics.data.gov.uk/id/local-authority/32UF,Asset & Property,Professional and Contractors Fees,27/06/2023,30032418,"1,646.68 ",Chase Services Group LTD
South Holland District Council,http://statistics.data.gov.uk/id/local-authority/32UF,Asset & Property,Professional Fees,27/06/2023,30032106,"4,416.20 ",DWF Law LLP
South Holland District Council,http://statistics.data.gov.uk/id/local-authority/32UF,Environmental Services,Agency Staff,27/06/2023,30032493,717.59 ,The Best Connection Group Ltd
South Holland District Council,http://statistics.data.gov.uk/id/local-authority/32UF,Environmental Services,Agency Staff,27/06/2023,30032507,"5,824.75 ",Integrity Plus Ltd
South Holland District Council,http://statistics.data.gov.uk/id/local-authority/32UF,Environmental Services,Agency Staff,27/06/2023,30032508,666.89 ,The Best Connection Group Ltd
South Holland District Council,http://statistics.data.gov.uk/id/local-authority/32UF,Environmental Services,Agency Staff,27/06/2023,30032509,666.89 ,The Best Connection Group Ltd
South Holland District Council,http://statistics.data.gov.uk/id/local-authority/32UF,Environmental Services,Agency Staff,27/06/2023,30032510,"2,054.18 ",Quality Service Recruitment Ltd
South Holland District Council,http://statistics.data.gov.uk/id/local-authority/32UF,Environmental Services,Agency Staff,27/06/2023,30032529,833.61 ,The Best Connection Group Ltd
South Holland District Council,http://statistics.data.gov.uk/id/local-authority/32UF,Environmental Services,Agency Staff,27/06/2023,30032530,"7,162.67 ",Integrity Plus Ltd
South Holland District Council,http://statistics.data.gov.uk/id/local-authority/32UF,Environmental Services,Agency Staff,27/06/2023,30032531,"6,236.14 ",Integrity Plus Ltd
South Holland District Council,http://statistics.data.gov.uk/id/local-authority/32UF,Environmental Services,Computer Software Licence Costs,27/06/2023,30031545,950.00 ,Bartec Municipal Technologies Ltd
South Holland District Council,http://statistics.data.gov.uk/id/local-authority/32UF,Environmental Services,Computer Software Licence Costs,27/06/2023,30031657,"13,200.00 ",Bartec Municipal Technologies Ltd
South Holland District Council,http://statistics.data.gov.uk/id/local-authority/32UF,Environmental Services,Fuel and Oil,27/06/2023,30032298,"7,150.70 ",C H Jones Ltd
South Holland District Council,http://statistics.data.gov.uk/id/local-authority/32UF,Environmental Services,Materials and Consumables,27/06/2023,30031547,"14,332.22 ",Berry BPI Refuse
South Holland District Council,http://statistics.data.gov.uk/id/local-authority/32UF,Environmental Services,Professional and Contractors Fees,27/06/2023,30031501,985.38 ,Kings Armoured Security Services Ltd
South Holland District Council,http://statistics.data.gov.uk/id/local-authority/32UF,Head of ICT and Digital,Computer Software Licence Costs,27/06/2023,30031664,"2,424.12 ",Phoenix Software Ltd
South Holland District Council,http://statistics.data.gov.uk/id/local-authority/32UF,Head of ICT and Digital,Computer Software Licence Costs,27/06/2023,30031692,"3,079.21 ",Phoenix Software Ltd
South Holland District Council,http://statistics.data.gov.uk/id/local-authority/32UF,Leisure & Culture Communities,Computer Hardware Maintenance,27/06/2023,30031831,"1,222.28 ",Spektrix Ltd
South Holland District Council,http://statistics.data.gov.uk/id/local-authority/32UF,Leisure & Culture Communities,Gas,27/06/2023,30032274,"1,778.56 ",Espo Gas and Electricity
South Holland District Council,http://statistics.data.gov.uk/id/local-authority/32UF,Leisure & Culture Communities,Performers and Entertainers Fees,27/06/2023,30032494,"4,994.21 ",Entertainers Show Providers Ltd
South Holland District Council,http://statistics.data.gov.uk/id/local-authority/32UF,Leisure & Culture Communities,Performers and Entertainers Fees,27/06/2023,30032513,"6,331.16 ",Entertainers Show Providers Ltd
South Holland District Council,http://statistics.data.gov.uk/id/local-authority/32UF,Planning,Grants and Contributions to Outside Bodies - No Service Received,27/06/2023,30031553,"118,650.04 ",Lincolnshire County Council (S106)
South Holland District Council,http://statistics.data.gov.uk/id/local-authority/32UF,Planning,Grants and Contributions to Outside Bodies - No Service Received,27/06/2023,30031554,"34,705.02 ",Lincolnshire County Council (S106)
South Holland District Council,http://statistics.data.gov.uk/id/local-authority/32UF,Planning,Grants and Contributions to Outside Bodies - No Service Received,27/06/2023,30031567,"146,804.40 ",Lincolnshire County Council (S106)
South Holland District Council,http://statistics.data.gov.uk/id/local-authority/32UF,Planning,Grants and Contributions to Outside Bodies - No Service Received,27/06/2023,30031569,"42,723.68 ",Lincolnshire County Council (S106)
South Holland District Council,http://statistics.data.gov.uk/id/local-authority/32UF,Planning,Grants and Contributions to Outside Bodies - No Service Received,27/06/2023,30031599,"274,734.00 ",Lincolnshire County Council (S106)
South Holland District Council,http://statistics.data.gov.uk/id/local-authority/32UF,Planning,Grants and Contributions to Outside Bodies - No Service Received,27/06/2023,30031600,"443,225.36 ",Lincolnshire County Council (S106)
South Holland District Council,http://statistics.data.gov.uk/id/local-authority/32UF,Public Protection,Professional and Contractors Fees,27/06/2023,30031544,"1,392.68 ",The Oyster Partnership Ltd
South Holland District Council,http://statistics.data.gov.uk/id/local-authority/32UF,Public Protection,Professional and Contractors Fees,27/06/2023,30032184,"2,838.00 ",LA Support Limited
South Holland District Council,http://statistics.data.gov.uk/id/local-authority/32UF,AD Housing,Grants and Contributions to Outside Bodies - No Service Received,29/06/2023,30032505,"3,480.00 ",A Coupland (Surfacing) Ltd
South Holland District Council,http://statistics.data.gov.uk/id/local-authority/32UF,AD Housing HRA,Agency Staff,29/06/2023,30032402,"1,177.10 ","""Personal Information Redacted"""
South Holland District Council,http://statistics.data.gov.uk/id/local-authority/32UF,AD Housing HRA,Agency Staff,29/06/2023,30032403,432.10 ,"""Personal Information Redacted"""
South Holland District Council,http://statistics.data.gov.uk/id/local-authority/32UF,AD Housing HRA,Agency Staff,29/06/2023,30032404,968.50 ,"""Personal Information Redacted"""
South Holland District Council,http://statistics.data.gov.uk/id/local-authority/32UF,AD Housing HRA,Agency Staff,29/06/2023,30032421,"1,013.20 ","""Personal Information Redacted"""
South Holland District Council,http://statistics.data.gov.uk/id/local-authority/32UF,AD Housing HRA,Agency Staff,29/06/2023,30032448,927.50 ,"""Personal Information Redacted"""
South Holland District Council,http://statistics.data.gov.uk/id/local-authority/32UF,AD Housing HRA,Agency Staff,29/06/2023,30032460,"1,398.68 ",Integrity Plus Ltd
South Holland District Council,http://statistics.data.gov.uk/id/local-authority/32UF,AD Housing HRA,Buildings Maintenance - Responsive,29/06/2023,30032264,"1,925.00 ",C G Godfrey Ltd
South Holland District Council,http://statistics.data.gov.uk/id/local-authority/32UF,AD Housing HRA,Buildings Maintenance - Responsive,29/06/2023,30032342,950.00 ,Boors Ltd
South Holland District Council,http://statistics.data.gov.uk/id/local-authority/32UF,AD Housing HRA,Buildings Maintenance - Responsive,29/06/2023,30032344,"1,200.00 ",Boors Ltd
South Holland District Council,http://statistics.data.gov.uk/id/local-authority/32UF,AD Housing HRA,Buildings Maintenance - Responsive,29/06/2023,30032395,"1,695.00 ",Boors Ltd
South Holland District Council,http://statistics.data.gov.uk/id/local-authority/32UF,AD Housing HRA,Buildings Maintenance - Responsive,29/06/2023,30032400,"1,050.00 ",Boors Ltd
South Holland District Council,http://statistics.data.gov.uk/id/local-authority/32UF,AD Housing HRA,Buildings Maintenance - Responsive,29/06/2023,30032408,435.00 ,Boors Ltd
South Holland District Council,http://statistics.data.gov.uk/id/local-authority/32UF,AD Housing HRA,Buildings Maintenance - Responsive,29/06/2023,30032424,732.00 ,Boors Ltd
South Holland District Council,http://statistics.data.gov.uk/id/local-authority/32UF,AD Housing HRA,Buildings Maintenance - Responsive,29/06/2023,30032425,476.00 ,Boors Ltd
South Holland District Council,http://statistics.data.gov.uk/id/local-authority/32UF,AD Housing HRA,Buildings Maintenance - Responsive,29/06/2023,30032434,485.00 ,Boors Ltd
South Holland District Council,http://statistics.data.gov.uk/id/local-authority/32UF,AD Housing HRA,Buildings Maintenance - Responsive,29/06/2023,30032435,"1,050.00 ",Boors Ltd
South Holland District Council,http://statistics.data.gov.uk/id/local-authority/32UF,AD Housing HRA,Buildings Maintenance - Responsive,29/06/2023,30032438,425.00 ,Boors Ltd
South Holland District Council,http://statistics.data.gov.uk/id/local-authority/32UF,AD Housing HRA,Buildings Maintenance - Responsive,29/06/2023,30032446,"1,785.00 ",C G Godfrey Ltd
South Holland District Council,http://statistics.data.gov.uk/id/local-authority/32UF,AD Housing HRA,Buildings Maintenance - Responsive,29/06/2023,30032532,625.00 ,Boors Ltd
South Holland District Council,http://statistics.data.gov.uk/id/local-authority/32UF,AD Housing HRA,Buildings Maintenance - Responsive,29/06/2023,30032533,"2,700.00 ",Boors Ltd
South Holland District Council,http://statistics.data.gov.uk/id/local-authority/32UF,AD Housing HRA,Buildings Maintenance - Responsive,29/06/2023,30032534,"2,082.00 ",Boors Ltd
South Holland District Council,http://statistics.data.gov.uk/id/local-authority/32UF,AD Housing HRA,Buildings Maintenance - Responsive,29/06/2023,30032536,"1,160.25 ",C G Godfrey Ltd
South Holland District Council,http://statistics.data.gov.uk/id/local-authority/32UF,AD Housing HRA,Buildings Maintenance - Responsive,29/06/2023,30032537,"1,547.00 ",C G Godfrey Ltd
South Holland District Council,http://statistics.data.gov.uk/id/local-authority/32UF,AD Housing HRA,Buildings Maintenance - Responsive,29/06/2023,30032538,422.50 ,C G Godfrey Ltd
South Holland District Council,http://statistics.data.gov.uk/id/local-authority/32UF,AD Housing HRA,Buildings Maintenance - Responsive,29/06/2023,30032539,"2,177.50 ",C G Godfrey Ltd
South Holland District Council,http://statistics.data.gov.uk/id/local-authority/32UF,AD Housing HRA,Materials and Consumables,29/06/2023,30032399,743.50 ,EPH Supplies Wholesale Ltd
South Holland District Council,http://statistics.data.gov.uk/id/local-authority/32UF,AD Housing HRA,Materials and Consumables,29/06/2023,30032423,510.59 ,Kirby and Wells Ltd T A Kawstore
South Holland District Council,http://statistics.data.gov.uk/id/local-authority/32UF,AD Housing HRA,Professional and Contractors Fees,29/06/2023,30031839,878.01 ,Lakeside Water & Building Services Ltd
South Holland District Council,http://statistics.data.gov.uk/id/local-authority/32UF,AD Housing HRA,Professional and Contractors Fees,29/06/2023,30031840,562.39 ,Lakeside Water & Building Services Ltd
South Holland District Council,http://statistics.data.gov.uk/id/local-authority/32UF,AD Housing HRA,Professional and Contractors Fees,29/06/2023,30031841,611.20 ,Lakeside Water & Building Services Ltd
South Holland District Council,http://statistics.data.gov.uk/id/local-authority/32UF,AD Housing HRA,Professional and Contractors Fees,29/06/2023,30031842,562.39 ,Lakeside Water & Building Services Ltd
South Holland District Council,http://statistics.data.gov.uk/id/local-authority/32UF,AD Housing HRA,Professional and Contractors Fees,29/06/2023,30031848,878.01 ,Lakeside Water & Building Services Ltd
South Holland District Council,http://statistics.data.gov.uk/id/local-authority/32UF,AD Housing HRA,Professional and Contractors Fees,29/06/2023,30031849,878.01 ,Lakeside Water & Building Services Ltd
South Holland District Council,http://statistics.data.gov.uk/id/local-authority/32UF,AD Housing HRA,Professional and Contractors Fees,29/06/2023,30032349,562.39 ,Lakeside Water & Building Services Ltd
South Holland District Council,http://statistics.data.gov.uk/id/local-authority/32UF,AD Housing HRA,Roof Repairs,29/06/2023,30032478,640.00 ,Kev Forman Roofing Ltd
South Holland District Council,http://statistics.data.gov.uk/id/local-authority/32UF,AD Housing HRA,Roof Repairs,29/06/2023,30032479,850.00 ,Kev Forman Roofing Ltd
South Holland District Council,http://statistics.data.gov.uk/id/local-authority/32UF,AD Housing HRA,Roof Repairs,29/06/2023,30032480,720.00 ,Kev Forman Roofing Ltd
South Holland District Council,http://statistics.data.gov.uk/id/local-authority/32UF,AD Housing HRA,Void Repairs,29/06/2023,30032351,585.00 ,Boors Ltd
South Holland District Council,http://statistics.data.gov.uk/id/local-authority/32UF,AD Housing HRA,Void Repairs,29/06/2023,30032355,585.00 ,Boors Ltd
South Holland District Council,http://statistics.data.gov.uk/id/local-authority/32UF,AD Housing HRA,Void Repairs,29/06/2023,30032397,"1,120.00 ",Boors Ltd
South Holland District Council,http://statistics.data.gov.uk/id/local-authority/32UF,AD Housing HRA,Void Repairs,29/06/2023,30032476,"2,735.00 ",Boors Ltd
South Holland District Council,http://statistics.data.gov.uk/id/local-authority/32UF,AD Housing HRA,Void Repairs,29/06/2023,30032477,585.00 ,Boors Ltd
South Holland District Council,http://statistics.data.gov.uk/id/local-authority/32UF,AD Strategic Growth and Development,Grants and Contributions to Outside Bodies - No Service Received,29/06/2023,30032638,"2,500.00 ",The Holbeach Music & Beer Festival
South Holland District Council,http://statistics.data.gov.uk/id/local-authority/32UF,AD Strategic Growth and Development,Professional and Contractors Fees,29/06/2023,30032157,904.47 ,Integrity Plus Ltd
South Holland District Council,http://statistics.data.gov.uk/id/local-authority/32UF,AD Strategic Growth and Development,Professional and Contractors Fees,29/06/2023,30032302,"1,134.42 ",Integrity Plus Ltd
South Holland District Council,http://statistics.data.gov.uk/id/local-authority/32UF,AD Strategic Growth and Development,Professional and Contractors Fees,29/06/2023,30032630,"1,242.60 ",Integrity Plus Ltd
South Holland District Council,http://statistics.data.gov.uk/id/local-authority/32UF,AD Strategic Growth and Development,Purchase of Buildings,29/06/2023,30032540,"722,625.00 ",Capsticks Solicitors LLP
South Holland District Council,http://statistics.data.gov.uk/id/local-authority/32UF,AD Strategic Growth and Development,Works to Buildings (Main Contractor),29/06/2023,30032540,"10,451.76 ",Capsticks Solicitors LLP
South Holland District Council,http://statistics.data.gov.uk/id/local-authority/32UF,AD Wellbeing and Community Leadership,Bed and Breakfast Accommodation (Homelessness Service),29/06/2023,30032456,"1,980.00 ",The Red Lion Hotel
South Holland District Council,http://statistics.data.gov.uk/id/local-authority/32UF,AD Wellbeing and Community Leadership,Bed and Breakfast Accommodation (Homelessness Service),29/06/2023,30032458,"4,785.00 ",The Red Lion Hotel
South Holland District Council,http://statistics.data.gov.uk/id/local-authority/32UF,AD Wellbeing and Community Leadership,Grants and Contributions to Outside Bodies - No Service Received,29/06/2023,30032505,"6,960.00 ",A Coupland (Surfacing) Ltd
South Holland District Council,http://statistics.data.gov.uk/id/local-authority/32UF,Asset & Property,Electricity,29/06/2023,30032620,548.48 ,Crowland Parish Council
South Holland District Council,http://statistics.data.gov.uk/id/local-authority/32UF,Asset & Property,Furniture and Equipment,29/06/2023,30031743,"7,582.00 ",e.on Energy Solutions Ltd (Highway Lighting)
South Holland District Council,http://statistics.data.gov.uk/id/local-authority/32UF,Asset & Property,Furniture and Equipment,29/06/2023,30032604,840.00 ,Nagels UK Limited
South Holland District Council,http://statistics.data.gov.uk/id/local-authority/32UF,Asset & Property,Professional and Contractors Fees,29/06/2023,30031310,"3,060.00 ",Eunomia Research & Consulting Ltd
South Holland District Council,http://statistics.data.gov.uk/id/local-authority/32UF,Asset & Property,Professional and Contractors Fees,29/06/2023,30032555,925.80 ,Lincolnshire County Council
South Holland District Council,http://statistics.data.gov.uk/id/local-authority/32UF,Asset & Property,"Purchase of Plant, Machinery and Equipment",29/06/2023,30032393,"8,603.20 ",GBSG Ltd
South Holland District Council,http://statistics.data.gov.uk/id/local-authority/32UF,Asset & Property,Rent Payments,29/06/2023,30032585,"1,333.33 ",Station Storage Lincs Ltd
South Holland District Council,http://statistics.data.gov.uk/id/local-authority/32UF,Capital - Strategic Finance & Compliance,"Purchase of Plant, Machinery and Equipment",29/06/2023,30032393,"8,603.20 ",GBSG Ltd
South Holland District Council,http://statistics.data.gov.uk/id/local-authority/32UF,Democratic Services - Democratic,Postages,29/06/2023,30031684,"2,415.57 ",Royal Mail Group Ltd
South Holland District Council,http://statistics.data.gov.uk/id/local-authority/32UF,Environmental Services,Agency Staff,29/06/2023,30032035,"1,157.52 ",Questech Recruitment Limited
South Holland District Council,http://statistics.data.gov.uk/id/local-authority/32UF,Environmental Services,Agency Staff,29/06/2023,30032618,"1,056.25 ",GI Group (previously Encore)
South Holland District Council,http://statistics.data.gov.uk/id/local-authority/32UF,Environmental Services,Agency Staff,29/06/2023,30032629,987.12 ,The Best Connection Group Ltd
South Holland District Council,http://statistics.data.gov.uk/id/local-authority/32UF,Environmental Services,Electricity,29/06/2023,30032620,548.48 ,Crowland Parish Council
South Holland District Council,http://statistics.data.gov.uk/id/local-authority/32UF,Environmental Services,Furniture and Equipment,29/06/2023,30032604,840.00 ,Nagels UK Limited
South Holland District Council,http://statistics.data.gov.uk/id/local-authority/32UF,Environmental Services,Materials and Consumables,29/06/2023,30031724,967.50 ,Berry BPI Refuse
South Holland District Council,http://statistics.data.gov.uk/id/local-authority/32UF,Environmental Services,Materials and Consumables,29/06/2023,30031725,"7,720.11 ",Berry BPI Refuse
South Holland District Council,http://statistics.data.gov.uk/id/local-authority/32UF,Environmental Services,Professional and Contractors Fees,29/06/2023,30032555,925.80 ,Lincolnshire County Council
South Holland District Council,http://statistics.data.gov.uk/id/local-authority/32UF,Head of ICT and Digital,Computer Hardware Purchase,29/06/2023,30031780,"2,952.20 ",Tangible Benefit
South Holland District Council,http://statistics.data.gov.uk/id/local-authority/32UF,Head of ICT and Digital,Computer Software Licence Costs,29/06/2023,30032617,"14,249.16 ",Public Sector Partnership Services Ltd
South Holland District Council,http://statistics.data.gov.uk/id/local-authority/32UF,AD Housing HRA,Agency Staff,04/07/2023,30032599,"1,177.10 ","""Personal Information Redacted"""
South Holland District Council,http://statistics.data.gov.uk/id/local-authority/32UF,AD Housing HRA,Agency Staff,04/07/2023,30032600,"1,087.70 ","""Personal Information Redacted"""
South Holland District Council,http://statistics.data.gov.uk/id/local-authority/32UF,AD Housing HRA,Agency Staff,04/07/2023,30032601,"1,062.87 ","""Personal Information Redacted"""
South Holland District Council,http://statistics.data.gov.uk/id/local-authority/32UF,AD Housing HRA,Agency Staff,04/07/2023,30032647,"1,398.68 ",Integrity Plus Ltd
South Holland District Council,http://statistics.data.gov.uk/id/local-authority/32UF,AD Housing HRA,Buildings Maintenance - Responsive,04/07/2023,30032666,975.00 ,Boors Ltd
South Holland District Council,http://statistics.data.gov.uk/id/local-authority/32UF,AD Housing HRA,Buildings Maintenance - Responsive,04/07/2023,30032667,625.00 ,Boors Ltd
South Holland District Council,http://statistics.data.gov.uk/id/local-authority/32UF,AD Housing HRA,Buildings Maintenance - Responsive,04/07/2023,30032683,"1,150.00 ","""Personal Information Redacted"""
South Holland District Council,http://statistics.data.gov.uk/id/local-authority/32UF,AD Housing HRA,Buildings Maintenance - Responsive,04/07/2023,30032688,525.00 ,"""Personal Information Redacted"""
South Holland District Council,http://statistics.data.gov.uk/id/local-authority/32UF,AD Housing HRA,Buildings Maintenance - Responsive,04/07/2023,30032696,"2,200.00 ","""Personal Information Redacted"""
South Holland District Council,http://statistics.data.gov.uk/id/local-authority/32UF,AD Housing HRA,Buildings Maintenance - Responsive,04/07/2023,30032697,"1,980.00 ","""Personal Information Redacted"""
South Holland District Council,http://statistics.data.gov.uk/id/local-authority/32UF,AD Housing HRA,Cleaning Contract,04/07/2023,30032686,"1,985.00 ",Avasta
South Holland District Council,http://statistics.data.gov.uk/id/local-authority/32UF,AD Housing HRA,Cleaning Contract,04/07/2023,30032687,520.00 ,Avasta
South Holland District Council,http://statistics.data.gov.uk/id/local-authority/32UF,AD Housing HRA,Drain Repairs,04/07/2023,30031970,"16,978.50 ",Dalrod Drainage Solutions
South Holland District Council,http://statistics.data.gov.uk/id/local-authority/32UF,AD Housing HRA,Gas Repairs,04/07/2023,30031964,"15,252.12 ",Aaron Services Ltd
South Holland District Council,http://statistics.data.gov.uk/id/local-authority/32UF,AD Housing HRA,Gas Servicing,04/07/2023,30031966,"1,918.68 ",Aaron Services Ltd
South Holland District Council,http://statistics.data.gov.uk/id/local-authority/32UF,AD Housing HRA,Grounds Maintenance Contract (External),04/07/2023,30032215,750.00 ,Greenscape Tree Safe Ltd
South Holland District Council,http://statistics.data.gov.uk/id/local-authority/32UF,AD Housing HRA,Materials and Consumables,04/07/2023,30032644,907.91 ,EPH Supplies Wholesale Ltd
South Holland District Council,http://statistics.data.gov.uk/id/local-authority/32UF,AD Housing HRA,Professional and Contractors Fees,04/07/2023,30031859,"1,375.00 ",Calvert Brain & Fraulo Ltd
South Holland District Council,http://statistics.data.gov.uk/id/local-authority/32UF,AD Housing HRA,Professional and Contractors Fees,04/07/2023,30032049,"1,102.50 ",Elite Building Solutions Ltd
South Holland District Council,http://statistics.data.gov.uk/id/local-authority/32UF,AD Housing HRA,Professional and Contractors Fees,04/07/2023,30032348,878.00 ,Lakeside Water & Building Services Ltd
South Holland District Council,http://statistics.data.gov.uk/id/local-authority/32UF,AD Housing HRA,Solid Fuel Servicing,04/07/2023,30031967,"1,239.32 ",Aaron Services Ltd
South Holland District Council,http://statistics.data.gov.uk/id/local-authority/32UF,AD Housing HRA,Void Repairs,04/07/2023,30032657,645.00 ,Boors Ltd
South Holland District Council,http://statistics.data.gov.uk/id/local-authority/32UF,AD Strategic Growth and Development,Purchase of Buildings,04/07/2023,30032624,"22,092.00 ",Capsticks Solicitors LLP
South Holland District Council,http://statistics.data.gov.uk/id/local-authority/32UF,AD Strategic Growth and Development,Works to Buildings (Main Contractor),04/07/2023,30032694,763.35 ,D Brown Building Contractors Ltd
South Holland District Council,http://statistics.data.gov.uk/id/local-authority/32UF,AD Wellbeing and Community Leadership,Bed and Breakfast Accommodation (Homelessness Service),04/07/2023,30032554,"6,483.34 ",The Red Lion Hotel
South Holland District Council,http://statistics.data.gov.uk/id/local-authority/32UF,AD Wellbeing and Community Leadership,Bed and Breakfast Accommodation (Homelessness Service),04/07/2023,30032569,"4,900.00 ",The Red Lion Hotel
South Holland District Council,http://statistics.data.gov.uk/id/local-authority/32UF,Asset & Property,Agency Staff,04/07/2023,30032648,"2,343.82 ",Integrity Plus Ltd
South Holland District Council,http://statistics.data.gov.uk/id/local-authority/32UF,Asset & Property,Agency Staff,04/07/2023,30032650,"1,267.62 ",Integrity Plus Ltd
South Holland District Council,http://statistics.data.gov.uk/id/local-authority/32UF,Democratic Services - Democratic,Postages,04/07/2023,30031946,428.29 ,Civica Election Services
South Holland District Council,http://statistics.data.gov.uk/id/local-authority/32UF,Environmental Services,Agency Staff,04/07/2023,30032690,"6,008.77 ",Integrity Plus Ltd
South Holland District Council,http://statistics.data.gov.uk/id/local-authority/32UF,Environmental Services,Workshop Parts,04/07/2023,30032057,549.50 ,Gemco Equipment Ltd
South Holland District Council,http://statistics.data.gov.uk/id/local-authority/32UF,Head of ICT and Digital,Computer Software Licence Costs,04/07/2023,30031983,"1,500.00 ",Goss Interactive Ltd
South Holland District Council,http://statistics.data.gov.uk/id/local-authority/32UF,Leisure & Culture Communities,Purchase of Goods for Resale,04/07/2023,30031985,550.00 ,Rhubarb Theatre
South Holland District Council,http://statistics.data.gov.uk/id/local-authority/32UF,Planning,Agency - Vacant Post Cover,04/07/2023,30031986,"2,814.00 ",Vivid Resourcing
South Holland District Council,http://statistics.data.gov.uk/id/local-authority/32UF,Public Protection,Professional and Contractors Fees,04/07/2023,30031852,"1,392.68 ",The Oyster Partnership Ltd
South Holland District Council,http://statistics.data.gov.uk/id/local-authority/32UF,AD Housing,Grants and Contributions to Outside Bodies - No Service Received,06/07/2023,30032268,"2,600.00 ",Maplethorpe Builders Ltd
South Holland District Council,http://statistics.data.gov.uk/id/local-authority/32UF,AD Housing,Grants and Contributions to Outside Bodies - No Service Received,06/07/2023,30032661,"1,386.18 ",Dolphin Mobility East Midlands Ltd
South Holland District Council,http://statistics.data.gov.uk/id/local-authority/32UF,AD Housing HRA,Roof Repairs,06/07/2023,30032702,"1,250.00 ",Kev Forman Roofing Ltd
South Holland District Council,http://statistics.data.gov.uk/id/local-authority/32UF,AD Housing HRA,Roof Repairs,06/07/2023,30032703,"1,390.00 ",Kev Forman Roofing Ltd
South Holland District Council,http://statistics.data.gov.uk/id/local-authority/32UF,AD Housing HRA,Roof Repairs,06/07/2023,30032706,885.00 ,Kev Forman Roofing Ltd
South Holland District Council,http://statistics.data.gov.uk/id/local-authority/32UF,AD Wellbeing and Community Leadership,Grants and Contributions to Outside Bodies - No Service Received,06/07/2023,30032268,"5,200.00 ",Maplethorpe Builders Ltd
South Holland District Council,http://statistics.data.gov.uk/id/local-authority/32UF,AD Wellbeing and Community Leadership,Grants and Contributions to Outside Bodies - No Service Received,06/07/2023,30032661,"2,772.36 ",Dolphin Mobility East Midlands Ltd
South Holland District Council,http://statistics.data.gov.uk/id/local-authority/32UF,Democratic Services - Democratic,Postages,06/07/2023,30032319,"8,004.05 ",Civica Election Services
South Holland District Council,http://statistics.data.gov.uk/id/local-authority/32UF,Democratic Services - Democratic,Stationery,06/07/2023,30032318,"4,135.09 ",Civica Election Services
South Holland District Council,http://statistics.data.gov.uk/id/local-authority/32UF,Democratic Services - Democratic,Stationery,06/07/2023,30032319,"5,593.36 ",Civica Election Services
South Holland District Council,http://statistics.data.gov.uk/id/local-authority/32UF,Democratic Services - Democratic,Stationery,06/07/2023,30032320,"1,864.59 ",Civica Election Services
South Holland District Council,http://statistics.data.gov.uk/id/local-authority/32UF,Democratic Services - Democratic,Stationery,06/07/2023,30032321,"4,793.40 ",Civica Election Services
South Holland District Council,http://statistics.data.gov.uk/id/local-authority/32UF,Environmental Services,Agency Staff,06/07/2023,30032037,"1,157.52 ",Questech Recruitment Limited
South Holland District Council,http://statistics.data.gov.uk/id/local-authority/32UF,AD Housing HRA,Staff Training Expenses (Non-Payroll),11/07/2023,30032340,"2,362.50 ",MPL Locksmiths (Training)
South Holland District Council,http://statistics.data.gov.uk/id/local-authority/32UF,Environmental Services,Materials and Consumables,11/07/2023,30032323,702.80 ,Rigby Taylor Limited
South Holland District Council,http://statistics.data.gov.uk/id/local-authority/32UF,Head of ICT and Digital,Computer Hardware Maintenance,11/07/2023,30032244,900.00 ,Onesource It Ltd
South Holland District Council,http://statistics.data.gov.uk/id/local-authority/32UF,Planning,Agency - Vacant Post Cover,11/07/2023,30032137,"12,463.00 ",GHM Planning Ltd
South Holland District Council,http://statistics.data.gov.uk/id/local-authority/32UF,Planning,Agency - Vacant Post Cover,11/07/2023,30032138,"3,486.00 ",Vivid Resourcing
South Holland District Council,http://statistics.data.gov.uk/id/local-authority/32UF,Public Protection,Professional and Contractors Fees,11/07/2023,30032119,"1,392.68 ",The Oyster Partnership Ltd
South Holland District Council,http://statistics.data.gov.uk/id/local-authority/32UF,AD Housing HRA,Cleaning Contract,13/07/2023,30032419,849.37 ,aAFD services Ltd
South Holland District Council,http://statistics.data.gov.uk/id/local-authority/32UF,Asset & Property,Buildings Maintenance - Responsive,13/07/2023,30032611,444.40 ,Stannah
South Holland District Council,http://statistics.data.gov.uk/id/local-authority/32UF,Democratic Services - Democratic,Computer Hardware Purchase,13/07/2023,30032326,"3,448.91 ",Civica UK Limited
South Holland District Council,http://statistics.data.gov.uk/id/local-authority/32UF,Environmental Services,Agency Staff,13/07/2023,30032294,"1,061.06 ",Questech Recruitment Limited
South Holland District Council,http://statistics.data.gov.uk/id/local-authority/32UF,Environmental Services,Clothing Uniforms and Laundry,13/07/2023,30032322,662.40 ,Worksafe Direct UK Limited
South Holland District Council,http://statistics.data.gov.uk/id/local-authority/32UF,Environmental Services,Clothing Uniforms and Laundry,13/07/2023,30032336,501.20 ,Groundsman Tools Ltd
South Holland District Council,http://statistics.data.gov.uk/id/local-authority/32UF,Environmental Services,Workshop Parts,13/07/2023,30032441,460.08 ,CV Components
South Holland District Council,http://statistics.data.gov.uk/id/local-authority/32UF,AD Housing HRA,Professional and Contractors Fees,18/07/2023,30032572,427.00 ,Elite Building Solutions Ltd
South Holland District Council,http://statistics.data.gov.uk/id/local-authority/32UF,AD Housing HRA,Roof Repairs,18/07/2023,30032535,"6,499.50 ",Hodgson Sayers Ltd
South Holland District Council,http://statistics.data.gov.uk/id/local-authority/32UF,Environmental Services,Materials and Consumables,18/07/2023,30032548,"9,671.73 ",Berry BPI Refuse
South Holland District Council,http://statistics.data.gov.uk/id/local-authority/32UF,Environmental Services,Staff Training Expenses (Non-Payroll),18/07/2023,30032512,"1,350.00 ",The Tess Group
South Holland District Council,http://statistics.data.gov.uk/id/local-authority/32UF,Head of ICT and Digital,Telephone and Mobiles,18/07/2023,30032607,468.75 ,Vodafone Ltd Corporate
South Holland District Council,http://statistics.data.gov.uk/id/local-authority/32UF,Health & Communities,Grants and Contributions to Outside Bodies - No Service Received,18/07/2023,30032345,"7,500.00 ",Spacehive Ltd
South Holland District Council,http://statistics.data.gov.uk/id/local-authority/32UF,Planning,Agency - Vacant Post Cover,18/07/2023,30032680,"1,498.00 ",Vivid Resourcing
South Holland District Council,http://statistics.data.gov.uk/id/local-authority/32UF,Public Protection,Professional and Contractors Fees,18/07/2023,30032295,"1,392.68 ",The Oyster Partnership Ltd
South Holland District Council,http://statistics.data.gov.uk/id/local-authority/32UF,AD Housing HRA,Cleaning Contract,20/07/2023,30032567,424.68 ,aAFD services Ltd
South Holland District Council,http://statistics.data.gov.uk/id/local-authority/32UF,Asset & Property,Buildings Maintenance - Responsive,20/07/2023,30032669,802.00 ,Horizon Specialist Contracting Ltd
South Holland District Council,http://statistics.data.gov.uk/id/local-authority/32UF,Asset & Property,Professional and Contractors Fees,20/07/2023,30032663,450.00 ,Weaar
South Holland District Council,http://statistics.data.gov.uk/id/local-authority/32UF,Asset & Property,Professional and Contractors Fees,20/07/2023,30032664,"2,900.00 ",Weaar
South Holland District Council,http://statistics.data.gov.uk/id/local-authority/32UF,Asset & Property,Professional and Contractors Fees,20/07/2023,30032670,"3,100.00 ",Weaar
South Holland District Council,http://statistics.data.gov.uk/id/local-authority/32UF,Environmental Services,Agency Staff,20/07/2023,30032685,"1,033.50 ",Questech Recruitment Limited
South Holland District Council,http://statistics.data.gov.uk/id/local-authority/32UF,Environmental Services,Professional and Contractors Fees,20/07/2023,30032658,650.00 ,Weaar
South Holland District Council,http://statistics.data.gov.uk/id/local-authority/32UF,Environmental Services,Professional and Contractors Fees,20/07/2023,30032660,650.00 ,Weaar
South Holland District Council,http://statistics.data.gov.uk/id/local-authority/32UF,Environmental Services,Professional and Contractors Fees,20/07/2023,30032662,950.00 ,Weaar
South Holland District Council,http://statistics.data.gov.uk/id/local-authority/32UF,Environmental Services,Professional and Contractors Fees,20/07/2023,30032665,750.00 ,Weaar
